Cogmind - Beta 17.1 @@@ ROGUE MODE // 2026.09.16 @ 22:44:55 Player: alice_fexa Result: Escaped! Performance ------------- Evolutions (9) 4500 Regions Visited (26) 5200 Robots Destroyed (605) 3025 Value Destroyed (34728) 34728 Prototype IDs (183) 3660 Alien Tech Used (5) 1000 Bonus (51168) 51168 TOTAL SCORE: 103281 Bonus ------- High Alert Combat Kills 15407 Follower Combat Kills 2461 Prayed to X0-1V1 5000 Major X0-1V1 Interference 20400 Entered Garrisons 400 Used RIF Installer 1500 Network Hubs Disabled 400 Aligned with FarCom 300 Met Zhirov 300 Built Enhanced Grunts 300 A7 Reached Mainframe 300 Met R17 at Cetus 500 Met R17 at Research 2000 Scanned by Researcher 500 Win 3000 Friendly Fire -1600 Cogmind --------- Core Integrity 1666/1700 Matter 235/300 Energy 1481/1720 System Corruption 1% Temperature Cool (6) Movement Treading (37) Location To Epsilon Eridani Parts ------- > --- POWER (2) -------- Cooled Antimatter Reactor Zero-point Reactor > --- PROPULSION (6) --- Advanced Medium Treads Treaded Biometal-Surge Exoskeleton > --- UTILITY (13) ----- Advanced Heat Sink Concept Antigrav Storage Unit Advanced Signal Interpreter Experimental Target Analyzer Centrium Light Armor Plating X0-1V1's Piety Tracker > --- WEAPON (4) ------- Concept Plasma Driver Railgun Concept Rapid Grenade Launcher Heavy Scimitar of Distortion > --- INVENTORY (25) --- Light Ion Engine Light Ion Engine Quantum Reactor Armored Heavy Treads Biometal Heavy Treads Combat Linear Gravjet Concept Chromion Battery (800) Mini Quantum Capacitor Advanced Transmission Jammer Experimental EM Shield Advanced Force Field Faulty Concept Energy Mantle Faulty Concept Energy Mantle Concept Antimissile System Concept Matter Streamer Concept Matter Streamer Crosscalibrator Railgun Railgun Enhanced Hardcell Cannon Gamma Bomb Array Chaos Jack (35) CPS Tube (2) Peak State ------------ > --- POWER ------------ ZP-Antimatter Core > --- PROPULSION ------- Treaded Biometal-Surge Exoskeleton > --- UTILITY ---------- Armored Scrap Engine 2N-1CE's Frost Array Concept Turbovents Concept Antigrav Storage Unit Concept Hypertargeting System Concept Core Analysis Suite Experimental Weapon Cycler Concept Phase Shift Module Advanced Powered Armor Experimental Force Field > --- WEAPON ----------- Concept Plasma Driver Hpw. Ballistic Helical Construct/C > --- INVENTORY -------- Concept Thermoelectric Network Concept Chromion Battery Concept Chromion Battery Concept NT7 Matterbank Experimental Kinecellerator Mini Quantum Capacitor Advanced Weapon Cycler Advanced Transmission Jammer Medium Regenerative Plating Experimental EM Shield Advanced Force Field Experimental Force Field Concept Energy Mantle Concept Energy Mantle Concept Antimissile System Concept Matter Streamer Concept Matter Streamer Crosscalibrator X0-1V1's Piety Tracker Transdimensional Reconstructor Graviton Cannon Gamma Bomb Array Tiamat Missile Launcher Concept Rapid Grenade Launcher CPS Tube [Rating: 255] Favorites ----------- Power Constructs Engine Ion Engine Power Core Constructs Reactor Zero-point Reactor Propulsion Constructs Treads Constructs Wheel Wheel Utility Huge Storage Unit Device X0-1V1's Piety Tracker Storage Huge Storage Unit Processor Enhanced Optical Array Hackware System Mapper Protection Improved Powered Armor Weapon Constructs Energy Gun Medium Laser Energy Cannon Concept Plasma Driver Ballistic Gun Heavy Assault Rifle Ballistic Cannon Constructs Launcher Missile Launcher Special Weapon Experimental Remote Datajack Impact Weapon Heavy Flail Slashing Weapon Heavy Scimitar of Distortion Piercing Weapon Enhanced Force Lance Build | -11 -10 -10 -10 -9 -8 -8 -8 -6 -6 -5 -5 -5 -5 -4 -4 -4 -4 -4 -4 -3 -3 -3 -2 -2 -2 -1 ------- Run | Yrd Mat Min Exi Min Mat Sto Rec Fac Gar Fac Upp Upp Zhi Pro Fac Ext Cet Arc Hub Res Tes Gar Res Qua Frg Acc Slots Evolved 18 | . . . . . 4 . . 4 . 2 . . . . 2 . . . . 2 . . 2 . . 2 Power . | . . . . . . . . . . . . . . . . . . . . . . . . . . . Propulsion 4 | . . . . . 2 . . 1 . 1 . . . . . . . . . . . . . . . . Utility 11 | . . . . . 2 . . 2 . 1 . . . . 2 . . . . 1 . . 1 . . 2 Weapon 3 | . . . . . . . . 1 . . . . . . . . . . . 1 . . 1 . . . Parts Attached 228 | 6 10 1 6 3 27 3 5 5 8 4 1 5 1 3 7 6 5 6 11 23 8 6 6 4 41 17 Power 13 | 1 . 1 3 . 4 . . . . . . . . . . . . . . . . . . . . 4 Engine 9 | 1 . 1 2 . 3 . . . . . . . . . . . . . . . . . . . . 2 Core 2 | . . . 1 . 1 . . . . . . . . . . . . . . . . . . . . . Reactor 2 | . . . . . . . . . . . . . . . . . . . . . . . . . . 2 Propulsion 21 | 2 3 . 3 2 7 1 2 . . . . . . . . . . . . . . . . . . 1 Treads 11 | 2 . . 1 . 5 1 1 . . . . . . . . . . . . . . . . . . 1 Leg . | . . . . . . . . . . . . . . . . . . . . . . . . . . . Wheel 10 | . 3 . 2 2 2 . 1 . . . . . . . . . . . . . . . . . . . Hover . | . . . . . . . . . . . . . . . . . . . . . . . . . . . Flight . | . . . . . . . . . . . . . . . . . . . . . . . . . . . Utility 140 | 1 4 . . . 7 . 1 3 5 3 1 4 . 2 6 6 4 6 7 15 8 4 6 3 37 7 Device 95 | . 3 . . . 4 . 1 1 5 1 . 4 . 1 5 5 2 6 4 10 8 2 5 3 22 3 Storage 6 | 1 1 . . . . . . . . . . . . . . . 1 . . . . . . . 3 . Processor 17 | . . . . . 1 . . 1 . 1 . . . . 1 1 . . 1 3 . . 1 . 5 2 Hackware 4 | . . . . . . . . . . . . . . . . . . . 1 1 . . . . 1 1 Protection 18 | . . . . . 2 . . 1 . 1 1 . . 1 . . 1 . 1 1 . 2 . . 6 1 Artifact . | . . . . . . . . . . . . . . . . . . . . . . . . . . . Weapon 54 | 2 3 . . 1 9 2 2 2 3 1 . 1 1 1 1 . 1 . 4 8 . 2 . 1 4 5 Energy Gun 3 | 2 . . . . 1 . . . . . . . . . . . . . . . . . . . . . Energy Cannon 2 | . . . . . 1 . . . . . . . . . . . . . . . . . . . 1 . Ballistic Gun 24 | . 2 . . 1 5 . . 2 1 . . 1 . . . . 1 . 2 4 . 1 . 1 . 3 Ballistic Cannon 6 | . . . . . . . . . . . . . . . . . . . . 3 . 1 . . 1 1 Launcher 9 | . 1 . . . 2 1 . . 2 . . . . . 1 . . . 1 . . . . . 1 . Special Weapon 4 | . . . . . . 1 . . . . . . 1 . . . . . . 1 . . . . 1 . Impact Weapon 2 | . . . . . . . 2 . . . . . . . . . . . . . . . . . . . Slashing Weapon 4 | . . . . . . . . . . 1 . . . 1 . . . . 1 . . . . . . 1 Piercing Weapon . | . . . . . . . . . . . . . . . . . . . . . . . . . . . Special Melee Weapon . | . . . . . . . . . . . . . . . . . . . . . . . . . . . Unidentified Prototypes 56 | . 1 . 2 . 3 1 1 . 1 . . 2 . 1 4 . 4 . 4 12 4 . . 1 13 2 Corrupted Parts 5 | . . . . 1 . . . . . . . . . . . . . . . . . . . . 4 . System Corruption 36 | . . . . 10 . . . . . . . . . . . . . . . . . . . . 26 . Parts Lost 40 | . . . . . 3 . . . 2 . . 2 . . . 2 . . . 2 1 2 . . 23 3 Power 3 | . . . . . 1 . . . . . . . . . . . . . . . . . . . 2 . Propulsion 3 | . . . . . 1 . . . . . . . . . . . . . . . . . . . 1 1 Utility 27 | . . . . . 1 . . . 2 . . 2 . . . 2 . . . 2 1 1 . . 14 2 Weapon 7 | . . . . . . . . . . . . . . . . . . . . . . 1 . . 6 . Highest Loss Streak 19 | . . . . . 2 . . . 1 . . 2 . . . 1 . . . 1 1 1 . . 19 2 To Critical Strikes . | . . . . . . . . . . . . . . . . . . . . . . . . . . . Average Backups 23 | 2 16 25 22 22 23 24 23 20 23 23 24 23 23 24 24 24 25 25 24 24 24 23 24 24 24 20 Power . | . 4 3 2 2 1 1 1 1 1 1 1 . . . . . . . . . . . . . . 1 Propulsion 1 | 1 3 4 2 5 2 3 2 1 1 1 . . . . . . . . . . . . . . . 1 Utility 13 | . 3 8 8 6 7 9 9 7 11 12 13 14 14 14 17 17 17 17 17 17 16 16 16 17 17 11 Weapon 5 | . 5 9 8 9 11 10 9 8 7 6 6 5 4 4 3 3 3 4 2 3 3 3 4 3 3 3 Tool/Special . | . . . . . . . . . . . . . . . . . . . . . . . . . . . Unused Backups 129 | . 6 1 14 3 6 1 5 3 5 3 8 5 . . 6 6 4 . 3 6 1 3 2 11 17 10 Power 17 | . 3 1 9 . . . . . . . . . . . . . . . . 1 . . . 2 . 1 Propulsion 11 | . 1 . . . . . 1 1 . . 1 . . . . . . . . . . . . . 4 3 Utility 66 | . . . 5 . . . 4 . 4 3 3 2 . . 4 5 2 . 3 3 1 3 . 7 13 4 Weapon 33 | . 2 . . 3 6 1 . 2 1 . 4 2 . . 2 1 2 . . 2 . . 2 2 . 1 Tool/Special 2 | . . . . . . . . . . . . 1 . . . . . . . . . . . . . 1 Average Slot Usage (%) 69 | . 97 100 100 99 97 99 77 60 59 58 58 56 58 56 62 62 62 63 62 61 55 57 56 59 56 52 Engine 3 | . 14 14 13 13 7 9 7 5 2 . . . . . . . . . . . . . . . . . Reactor 2 | . . . . . . . . . 2 5 5 4 5 5 4 3 5 5 5 4 3 4 4 3 2 5 Treads 5 | . 16 14 12 12 17 18 10 1 2 4 5 3 . . . 1 1 3 5 1 3 1 . . 1 7 Wheel 4 | . 11 14 15 15 17 18 11 4 . . . 1 3 . . . . . . . . . . . . . Device 19 | . 12 14 14 14 19 18 18 18 19 22 22 22 23 20 23 21 21 21 20 18 18 19 20 20 26 10 Storage 6 | . 14 14 14 14 9 9 9 6 6 5 5 5 5 5 5 5 5 5 5 4 4 4 4 3 3 4 Processor 5 | . . . . . 1 . . 5 6 5 5 5 5 5 9 10 10 10 10 9 8 9 8 7 5 6 Protection 2 | . . . . . 4 9 4 1 . . . . . 1 2 4 5 5 5 4 4 4 4 3 3 3 Energy Cannon 1 | . . . . . . . 2 1 1 . . 4 5 4 . 2 . . . . 2 1 . . . 2 Ballistic Gun 6 | . 11 28 25 28 17 16 12 6 7 4 . 1 . . . . . . 4 4 . . . 1 1 6 Ballistic Cannon 2 | . . . . . . . . . 3 5 4 . . . 4 2 5 5 4 3 1 2 4 3 3 . Peak Build Rating 255 | 6 24 24 32 33 48 44 72 83 107 125 134 138 130 142 155 156 157 154 161 191 206 194 193 201 255 192 Average Rating 122 | 4 10 24 26 32 42 43 54 77 92 123 125 128 128 129 152 151 153 146 151 176 188 180 186 195 214 166 On Entrance 107 | . 6 24 24 32 33 43 44 71 83 107 124 134 125 129 142 148 154 149 154 161 183 191 183 192 197 74 Avg Prop Armor Cover (%) 10 | . 12 11 11 11 13 12 12 . . . . . . . . . . . . . . . . . . 5 Naked Turns . | . . . . . . . . . . . . . . . . . . . . . . . . . . . Heaviest Build 206 | 14 93 92 98 98 110 111 107 108 117 131 120 135 133 146 160 159 165 166 185 191 195 189 187 205 206 102 Greatest Support 287 | 40 40 10 40 20 20 20 123 123 111 193 246 246 202 202 202 211 213 263 263 263 252 262 262 262 287 239 Greatest Overweight (x) 38 | 1 9 9 9 9 9 5 9 . 38 1 . 1 1 . . 1 1 1 . 2 1 . . . . . Average Overweight (x) 1 | . 6 9 6 8 4 5 3 . . . . . . . . . . . . . . . . . . . Largest Inventory Capacity 25 | 8 25 25 25 25 25 25 25 25 25 25 25 25 25 25 25 25 25 25 25 25 25 25 25 25 25 25 Average Capacity 24 | 7 21 25 25 25 25 25 25 25 25 25 25 25 25 25 25 25 25 25 25 25 25 25 25 25 25 25 Most Carried 25 | 4 25 25 25 25 25 25 25 25 25 25 25 25 24 25 25 25 25 25 25 25 25 25 25 25 25 25 Average Carried 24 | 3 16 25 23 24 24 24 24 20 24 24 24 23 23 24 24 24 24 25 24 24 24 24 24 24 24 21 Final Capacity 25 | 8 25 25 25 25 25 25 25 25 25 25 25 25 25 25 25 25 25 25 25 25 25 25 25 25 25 25 Final Carried 25 | 4 25 25 25 25 25 25 25 23 25 25 25 21 24 24 24 25 25 25 25 25 25 25 25 25 19 25 Scrap Engine Consumption 273 | . . . . . . . 35 16 32 5 2 5 5 1 4 18 18 1 10 55 18 16 1 4 27 . Constructs Created 8 | . . . . . . . 4 . . . . . . . . . . . . 1 2 . . . 1 . Constructs Modified 234 | . . . . . . . 12 12 31 2 6 17 3 13 8 28 5 2 7 52 17 10 . . 9 . Class Distribution -------------------- 45% | Construct 22% | Hacker-Construct 17% | Mutant 5% | Commander-Construct 4% | Commander-Mutant 3% | Scavenger-Mutant Dominant Class ---------------- Mutant | -10/Materials Mutant | -10/Mines Mutant | -10/Exiles Mutant | -9/Mines Scavenger-Mutant | -8/Materials Commander-Mutant | -8/Storage Construct | -8/Recycling Construct | -6/Factory Construct | -6/Garrison Construct | -5/Factory Construct | -5/Upper Caves Construct | -5/Upper Caves Construct | -5/Zhirov Construct | -4/Proximity Caves Construct | -4/Factory Construct | -4/Extension Commander-Construct | -4/Cetus Commander-Construct | -4/Archives Construct | -4/Hub_04(d) Hacker-Construct | -3/Research Hacker-Construct | -3/Testing Hacker-Construct | -3/Garrison Hacker-Construct | -2/Research Hacker-Construct | -2/Quarantine Construct | -2/Protoforge Tank | -1/Access Resources | -11 -10 -10 -10 -9 -8 -8 -8 -6 -6 -5 -5 -5 -5 -4 -4 -4 -4 -4 -4 -3 -3 -3 -2 -2 -2 -1 ----------- Run | Yrd Mat Min Exi Min Mat Sto Rec Fac Gar Fac Upp Upp Zhi Pro Fac Ext Cet Arc Hub Res Tes Gar Res Qua Frg Acc Matter Collected 24257 | 260 396 . 751 177 1239 331 454 380 1616 34 200 758 214 1028 981 1310 725 132 1705 1258 1086 1206 202 1483 6126 205 Remotely 4146 | . 64 . . . . . . . . . . 204 . 704 . 603 . . 955 160 167 . 93 . 1196 . Salvage Created 38429 | 97 870 . 370 223 1780 410 735 485 1525 150 466 645 397 107 1164 3492 330 378 3334 2655 2750 2145 446 2174 10827 474 Parts 1828 | 1 51 . 59 17 97 21 33 22 65 8 15 17 2 12 65 124 19 27 167 117 121 101 15 127 515 10 Haulers Intercepted 20 | . 2 . . . 4 2 . . . 1 . 1 . . 1 1 . . 1 1 3 . 1 2 . . Recyclers Shooed 16 | . 5 . . . 1 1 2 3 . . . . . . 1 2 . . 1 . . . . . . . Parts Field Recycled . | . . . . . . . . . . . . . . . . . . . . . . . . . . . Retrieved Matter . | . . . . . . . . . . . . . . . . . . . . . . . . . . . Parts Self-Destructed 34 | . . . . . . . . . . . 5 18 1 10 . . . . . . . . . . . . Prevented 11 | . . . . . . . . . . . 5 4 . 2 . . . . . . . . . . . . Parts Restored 5 | . . . . . . . . . . . . . . . . . . . . . . . . . 5 . Faulty 5 | . . . . . . . . . . . . . . . . . . . . . . . . . 5 . Kills | -11 -10 -10 -10 -9 -8 -8 -8 -6 -6 -5 -5 -5 -5 -4 -4 -4 -4 -4 -4 -3 -3 -3 -2 -2 -2 -1 ------- Run | Yrd Mat Min Exi Min Mat Sto Rec Fac Gar Fac Upp Upp Zhi Pro Fac Ext Cet Arc Hub Res Tes Gar Res Qua Frg Acc Combat Hostiles Destroyed 457 | . 12 . 2 5 25 5 5 4 17 . 7 12 . 9 13 33 3 1 30 41 32 33 1 21 140 6 Melee 7 | . . . . . . . . . . . . . . . 3 2 . . . . . . . . 2 . Guns 113 | . 5 . . 5 18 3 5 2 5 . . 1 . . . . . . 9 7 . 3 . 8 42 . Cannons 249 | . . . . . 1 . . . 8 . 1 1 . 1 5 27 3 1 20 25 30 24 1 13 88 . AOE 76 | . 7 . 2 . 6 2 . . 4 . 6 9 . 8 3 1 . . 1 8 1 6 . . 7 5 Classes Destroyed 39 | 1 6 . 3 . 6 . 2 1 . . . 1 . . 1 3 . . 2 3 4 1 . . 5 . Worker 18 | . 2 . . 1 2 . . . . . . . . . . 2 . . 7 . 1 . . . 1 2 Builder 18 | . 1 . . 1 4 . 1 . . 1 . . . . 2 1 . . 2 1 2 . 1 1 . . Tunneler 1 | . . . . . . . . . . . . . . . . . . . 1 . . . . . . . Hauler 20 | . 2 . . . 4 2 . . . 1 . 1 . . 1 1 . . 1 1 3 . 1 2 . . Recycler 30 | 1 5 . . . 2 1 5 2 . . . . . . 3 4 . . 3 . 1 . 1 1 . 1 Carrier 1 | . . . . . . . . . . . . . . . . . . . . . . . . . 1 . Mechanic 4 | . . . . . 1 . . . . . . . . . . . . . . . . 1 . . 2 . Operator 23 | . . . . . 1 . . 1 . . . . . . . 1 . 7 2 1 1 . . 5 4 . Drone 4 | . . . . . . . . . . . . . . . . . . . . . 1 . . . 3 . Turret 1 | . . . 1 . . . . . . . . . . . . . . . . . . . . . . . Watcher 22 | . 3 . . . 4 . . . . . . . . . 1 1 . . 2 . 2 1 2 3 3 . Swarmer 56 | . 6 . . . . 2 . . 4 . . . . 9 4 4 . . . 10 . 14 . . 3 . Cutter 4 | . . . . . 2 . . . . . . . . . 2 . . . . . . . . . . . Saboteur 7 | . . . . . . . . . . . . . . . . . . . . . 1 . . . 6 . Grunt 155 | . 6 . . 5 13 3 . . 5 . 4 5 . . . 21 . . 11 5 7 11 . 5 48 6 Brawler 9 | . . . . . 1 . . . 1 . . . . . . . . . . . 4 . . . 3 . Duelist 6 | . . . . . . . . . . . . . . . . . . . . . 1 . . . 5 . Protector 8 | . . . . . . . . . . . . . . . . 1 . . 2 . . . . 1 4 . Researcher 5 | . . . . . . . . . . . . . . . . . . . . . 1 . . . 4 . Sentry 48 | . . . . . 6 1 2 1 6 . . . . . . 3 . 1 3 3 . 5 1 2 14 . Demolisher 4 | . . . . . . . . . . . . . . . . . . . . 4 . . . . . . Specialist 1 | . . . . . . . . . . . . . . . . . . . . . . 1 . . . . Hunter 22 | . . . . . 3 . . 2 . . . . . . 2 2 . . 2 5 2 . . 2 2 . Programmer 49 | . . . . . . . . 1 1 . . . . . 4 . . . 5 . 12 . . 11 15 . Heavy 4 | . . . . . . . . . . . . . . . . . . . 2 . . 2 . . . . Q-Series 1 | . . . . . . . . . . . . . . . . . . . . . . . . . 1 . Behemoth 2 | . . . . . . . . . . . . . . . . 1 . . . . . 1 . . . . Cetus Guard 3 | . . . . . . . . . . . . . . . . . 3 . . . . . . . . . Lightning 5 | . . . . . . . . . . . . . . . . . . . 5 . . . . . . . Hotshot 3 | . . . . . . . . . . . . . . . . . . . . . . . . . 3 . Decapitator 12 | . . . . . . . . . . . . . . . . . . . . . . . . . 12 . Immortal 10 | . . . . . . . . . . . . . . . . . . . . . . . . . 10 . Striker 12 | . . . . . . . . . . . . . . . . . . . . 10 . . . . 2 . Executioner 4 | . . . . . . . . . . . . . . . . . . . . 4 . . . . . . Alpha 7 2 | . . . . . . . . . . . . . . . . . . . . . . . . . 2 . V-Series 7 | . . . . . . . . . . . . . . . . . . . . . . . . . 7 . Scientist 2 | . . . . . . . 2 . . . . . . . . . . . . . . . . . . . Scrapper 3 | . . . . . . . 3 . . . . . . . . . . . . . . . . . . . Zionite 8 | . . . 8 . . . . . . . . . . . . . . . . . . . . . . . Decomposer 1 | . . . . . . . . . . . . . . 1 . . . . . . . . . . . . Tinkerer 1 | . . . . . . . . . . . . . . . . . . . . . . . . . 1 . Master Thief 1 | . . . . . . . . . . . . 1 . . . . . . . . . . . . . . Assembled 8 | . . . 2 . . . . . . . . 6 . . . . . . . . . . . . . . Golem 1 | . . . . . . . . . . . . . . . 1 . . . . . . . . . . . Thug 3 | . . . . . . . . . . . 3 . . . . . . . . . . . . . . . Savage 1 | . . . . . . . . . . . . . . . . 1 . . . . . . . . . . Butcher 1 | . . . . . . . . . . . . . . . . 1 . . . . . . . . . . Fireman 4 | . . . . . . . . . . . . . . . . . . . . . 4 . . . . . Best Kill Streak 25 | 1 3 . 6 2 8 2 5 2 4 1 6 6 . 4 10 4 2 2 6 9 6 6 2 4 25 7 Combat Bots Only 23 | . 3 . 2 2 7 2 3 1 4 . 6 6 . 4 6 4 2 1 4 9 5 6 1 4 23 6 Max Kills in Single Turn 7 | 1 2 . 1 1 2 2 1 1 2 1 2 1 . 3 1 2 1 1 7 6 2 3 1 2 3 2 Gunslinging 1 | . 1 . . . 1 . . . . . . . . . . . . . . . . . . . . . Exploded 6 | . 2 . 1 . 1 2 . . 2 . 2 1 . 3 1 1 . . 1 6 1 3 . . 3 2 Melee 1 | . . . . . . . . . . . . . . . 1 1 . . . . . . . . 1 . Uniques/NPCs Destroyed 6 | . . . 4 . . . . . . . . . . . . . 1 . . 1 . . . . . . 8R-AWN (-10/Exiles) EX-HEX (-10/Exiles) EX-BIN (-10/Exiles) EX-DEC (-10/Exiles) A7 (-4/Cetus) Revision 17++ (-3/Research) Combat | -11 -10 -10 -10 -9 -8 -8 -8 -6 -6 -5 -5 -5 -5 -4 -4 -4 -4 -4 -4 -3 -3 -3 -2 -2 -2 -1 -------- Run | Yrd Mat Min Exi Min Mat Sto Rec Fac Gar Fac Upp Upp Zhi Pro Fac Ext Cet Arc Hub Res Tes Gar Res Qua Frg Acc Hostile Shots Fired 2225 | . 18 . 3 22 117 14 17 45 176 2 21 19 . 27 58 87 23 1 155 138 119 162 3 25 905 68 Missed 703 | . 6 . 2 2 41 7 4 12 69 . 6 10 . 10 20 26 6 . 50 31 42 47 1 11 270 30 Intercepted 11 | . . . . . . . . . . . . . . . . . . . . 11 . . . . . . Hits 1522 | . 12 . 1 20 76 7 13 33 107 2 15 9 . 17 38 61 17 1 105 107 77 115 2 14 635 38 Melee 70 | . . . . . 1 . . . . . . 7 . . 10 . . . . 6 8 . . . 38 . Projectile 1452 | . 12 . 1 20 75 7 13 33 107 2 15 2 . 17 28 61 17 1 105 101 69 115 2 14 597 38 AOE 44 | . . . . . . . 5 . . . . . . . . . . . . 6 1 . . . 32 . Critical Strikes 115 | . 1 . 1 . 2 . . . 1 . 1 . . 2 4 5 3 . 15 5 3 5 . . 65 2 Actively Blocked 58 | . . . . . . . . . . . . . . . . . . . . . . . . . 58 . Part Disruptions 3 | . . . . . . . . . . . . . . . . . . . 1 . 2 . . . . . Damage Taken 26089 | . 121 . 36 242 1140 93 353 425 1045 46 308 88 . 305 602 977 256 13 1348 1998 574 1766 21 137 13431 764 Core 2301 | . 18 . 14 27 168 15 22 22 135 . 41 . . 58 26 121 29 . 59 138 32 58 . . 1284 34 Absorbed by Shields 7013 | . . . . . . . . . . . . . . . . 224 270 14 1008 1340 189 1306 . 114 2548 . Reduced by Siege Mode 714 | . . . . . . . . . . . 12 . . . . . . . 69 . . . . . 633 . Ignored by Resistances 3601 | . . . . . 58 . . . . . . 9 . . 53 48 . . 866 54 755 . . 106 1552 100 Regen/Repaired (Parts) 7258 | . . . . . . . 249 151 736 23 246 . . 133 252 512 164 14 253 1541 287 927 . 33 1737 . Core Remaining (%) 82 | 100 . . . 95 . . 83 . 83 . . . . 91 . . . . 81 . . 83 . . 32 98 Volleys Fired 1689 | 3 52 1 55 17 128 21 37 28 107 7 14 52 6 17 23 92 35 28 117 106 93 110 22 72 426 20 Largest 3 | 2 2 2 2 2 2 2 2 3 3 1 1 2 1 1 1 1 1 1 2 3 1 1 2 1 2 3 Hottest 239 | 100 100 46 46 46 69 69 69 95 190 120 120 239 206 206 117 117 86 86 121 210 210 210 217 142 192 140 Shots Fired 2190 | 6 98 2 93 34 242 37 65 53 161 7 14 55 6 17 23 92 32 27 218 160 93 108 23 71 429 24 Gun 951 | 6 92 2 80 34 230 32 60 40 95 1 . 12 . . . . . . 103 47 . 3 1 15 92 6 Cannon 1125 | . . . . . 2 4 5 13 63 6 2 20 2 11 16 86 32 27 112 111 92 99 22 56 329 15 Launcher 105 | . 6 . 13 . 10 1 . . 3 . 12 23 . 6 7 6 . . . 2 1 6 . . 6 3 Special 9 | . . . . . . . . . . . . . 4 . . . . . 3 . . . . . 2 . Kinetic 1849 | . 12 2 80 34 230 32 58 44 145 1 . 12 . . 16 85 32 27 215 145 84 82 22 71 414 6 Thermal 197 | 6 80 . . . . . 2 . 13 6 2 20 2 11 . . . . . 13 . 20 . . 7 15 Explosive 70 | . 6 . 13 . 10 1 . . 3 . . 9 . 6 3 1 . . . 2 1 6 . . 6 3 Electromagnetic 65 | . . . . . 2 4 5 9 . . 12 14 . . 4 6 . . . . 8 . 1 . . . Robot Hit Streak 44 | 6 11 3 15 14 26 8 11 15 30 12 8 10 3 6 6 25 15 9 22 12 13 12 6 18 44 10 Robot Miss Streak 7 | . 7 1 3 3 3 2 2 1 2 1 1 2 1 . 1 4 2 2 3 3 5 3 1 2 6 1 Penetration Max 3 | . . . . . 1 . . . 1 . . 1 . . . 1 . 1 1 1 1 1 . 2 3 1 Secondary Targets 5 | . 1 . . . 3 . 1 . . . . . . . . . . . . . . . . . . . Max Gunslinging Chain 1 | . 1 . . . 1 . 1 . . . . . . . . . . . . . . . . . . . Shots Hit Robots 1514 | 6 62 1 49 21 175 21 45 46 131 5 6 28 11 4 31 88 26 21 165 102 51 64 10 52 287 6 Core Hits 894 | 2 37 . 33 12 80 10 21 12 55 3 14 26 4 8 16 48 9 11 88 60 34 48 4 37 205 17 Critical Kills 78 | . . . 1 . 1 . . . . . . . . . . 2 . . 6 5 1 3 . 8 50 1 Critical Parts Destroyed 72 | . . . . . . . . . 1 . . 1 . . . . . . 11 5 2 1 . 7 44 . Critical Strikes 180 | 2 6 . 1 . 1 . 2 . 1 . . 1 . . 2 2 . . 19 12 3 4 . 16 107 1 Burn 9 | 2 6 . . . . . 1 . . . . . . . . . . . . . . . . . . . Meltdown 1 | . . . . . . . . . . . . . . . . . . . . . . . . . . 1 Destroy 167 | . . . 1 . 1 . . . 1 . . 1 . . . 2 . . 19 12 3 4 . 16 107 . Blast 2 | . . . . . . . . . . . . . . . 2 . . . . . . . . . . . Corrupt 1 | . . . . . . . 1 . . . . . . . . . . . . . . . . . . . Melee Attacks 71 | . . . . . . . . 1 2 2 . . 8 6 33 18 . . . . . . . . . 1 Impact 3 | . . . . . . . . 1 2 . . . . . . . . . . . . . . . . . Slashing 68 | . . . . . . . . . . 2 . . 8 6 33 18 . . . . . . . . . 1 Piercing . | . . . . . . . . . . . . . . . . . . . . . . . . . . . Sneak Attacks 14 | . . . . . . . . . . . . . . 1 6 7 . . . . . . . . . . Combat Hostiles 2 | . . . . . . . . . . . . . . . . 2 . . . . . . . . . . Follow-up Attacks . | . . . . . . . . . . . . . . . . . . . . . . . . . . . Damage Inflicted 123924 | 73 1280 18 1116 315 3849 498 862 1081 4205 232 698 2262 645 874 2918 8113 1768 1483 8645 9299 8819 9664 1380 5631 46780 1416 Guns 13505 | 73 795 18 734 315 3070 388 689 675 1340 15 . 273 . . . . . . 2260 1126 . 39 . 259 1384 52 Cannons 96712 | . . . . . 31 . 123 345 2539 217 84 1018 . 94 1094 6567 1768 1483 5774 7178 8735 8232 1380 5372 44251 427 Explosions 10470 | . 485 . 382 . 748 110 50 . 326 . 614 971 . 669 547 547 . . 594 995 84 1393 . . 1018 937 Melee 3093 | . . . . . . . . 61 . . . . 645 111 1277 999 . . . . . . . . . . Ramming 144 | . . . . . . . . . . . . . . . . . . . 17 . . . . . 127 . Kinetic 103349 | . 103 18 734 315 3070 388 657 775 3214 15 . 273 . . 1094 6500 1768 1483 8034 7769 7941 7530 1380 5631 44605 52 Thermal 6119 | 73 937 . . . . . 82 . 665 217 191 1088 . 94 . . . . 39 535 . 741 . . 1030 427 Explosive 7681 | . 240 . 382 . 748 110 . . 326 . . 490 . 669 266 23 . . . 995 84 1393 . . 1018 937 Electromagnetic 3538 | . . . . . 31 . 123 245 . . 507 411 . . 281 591 . . 555 . 794 . . . . . Impact 61 | . . . . . . . . 61 . . . . . . . . . . . . . . . . . . Slashing 3032 | . . . . . . . . . . . . . 645 111 1277 999 . . . . . . . . . . Piercing . | . . . . . . . . . . . . . . . . . . . . . . . . . . . Highest Corruption 50 | . . . . 10 . . . 1 13 . . 17 . . 1 13 40 40 12 . 7 7 . 11 50 1 Average Corruption 10 | . . . . 10 . . . 1 3 . . 17 . . 1 2 33 13 5 . 3 7 . 10 18 1 Corruption Purged 24 | . . . . . . . . . . . . . . . . . . 16 . . . . . . 8 . Corruption Blocked . | . . . . . . . . . . . . . . . . . . . . . . . . . . . Effects 353 | . . . . . . . . 1 22 . . 37 . . 1 8 41 19 32 . 27 31 . 21 112 1 Message Errors 80 | . . . . . . . . 1 8 . . 9 . . . 5 9 5 7 . 4 5 . 6 21 . Matter Fused 75 | . . . . . . . . . 7 . . 8 . . 1 2 10 3 6 . 7 5 . 6 20 . Heat Flow Errors 37 | . . . . . . . . . 1 . . 6 . . . . 4 2 4 . 4 3 . 2 11 . Energy Discharges 48 | . . . . . . . . . 3 . . 5 . . . 1 3 2 2 . 5 5 . 3 18 1 Parts Rejected 11 | . . . . . . . . . . . . . . . . . 1 1 1 . . 2 . 1 5 . Parts Fused 6 | . . . . . . . . . . . . 1 . . . . 1 1 1 . . . . . 2 . Data Loss (minor) 36 | . . . . . . . . . 3 . . 2 . . . . 4 3 6 . 3 3 . 1 11 . Data Loss (major) 16 | . . . . . . . . . . . . 2 . . . . 5 1 . . 3 4 . 1 . . Misfires 3 | . . . . . . . . . . . . 1 . . . . . . 1 . . . . . 1 . Alerts 7 | . . . . . . . . . . . . 1 . . . . 1 . 1 . 1 2 . . 1 . Misdirections 13 | . . . . . . . . . . . . . . . . . . . 1 . . . . . 12 . Weapon Failures 21 | . . . . . . . . . . . . 2 . . . . 3 1 2 . . 2 . 1 10 . Overload Shots . | . . . . . . . . . . . . . . . . . . . . . . . . . . . Overflow Damage 16207 | . 31 . . . 3 . 20 . 59 . . 345 185 186 643 588 44 222 388 845 1659 332 265 1308 9031 53 Projectiles 15447 | . . . . . . . 20 . 59 . . 332 . 47 485 485 44 222 376 780 1659 324 265 1308 8988 53 Explosions 214 | . 31 . . . 3 . . . . . . 13 . 36 . 3 . . 12 65 . 8 . . 43 . Melee 546 | . . . . . . . . . . . . . 185 103 158 100 . . . . . . . . . . Knockbacks 214 | . . . . . . . . 2 4 . . . . . 4 24 2 7 44 29 10 11 . 4 73 . Impact 2 | . . . . . . . . . . . . . . . . . . . . . . . . . 2 . Kinetic 196 | . . . . . . . . 2 4 . . . . . 4 23 2 7 39 25 9 11 . 4 66 . Secondary 16 | . . . . . . . . . . . . . . . . 1 . . 5 4 1 . . . 5 . Self-Inflicted Damage 371 | . . . . . 43 . . . . . . 43 . . . . . . 113 . . . . . 172 . Shots 7 | . . . . . 2 . . . . . . 2 . . . . . . 2 . . . . . 1 . Rammed 12 | . . . . . 1 . . . . . . . . . . . . . 1 . . . . . 10 . Targets Rammed 12 | . . . . . 1 . . . . . . . . . . . . . 1 . . . . . 10 . Kicked . | . . . . . . . . . . . . . . . . . . . . . . . . . . . Crushed . | . . . . . . . . . . . . . . . . . . . . . . . . . . . Highest Temperature 492 | 117 195 . . 12 52 229 90 80 370 303 203 391 199 344 294 194 222 225 492 355 384 312 40 107 249 175 Average Temperature 87 | 59 54 . . 4 26 126 29 31 104 77 70 117 131 125 68 84 50 38 44 115 138 80 22 27 68 47 Received Heat Transfer 3059 | . 36 . . 135 504 27 90 54 306 9 156 18 . . 9 240 8 . 61 67 65 354 . 8 822 90 Thermoelectric Energy+ 84 | . . . . . . . . . . . . . . . . . . . . . . . . . 84 . Effects 16 | . . . . . . . . . 2 . . 2 . 3 . . . . 3 2 4 . . . . . Shutdowns 2 | . . . . . . . . . . . . . . . . . . . 1 1 . . . . . . Energy Bleed 3 | . . . . . . . . . 1 . . . . . . . . . . 1 1 . . . . . Interference 8 | . . . . . . . . . . . . 2 . 3 . . . . . . 3 . . . . . Matter Decay 1 | . . . . . . . . . 1 . . . . . . . . . . . . . . . . . Damage (major) 2 | . . . . . . . . . . . . . . . . . . . 2 . . . . . . . Siege Activations 12 | . . . . . . . . . . . 2 2 . . . . . . 4 . . . . . 4 . Total Turns 345 | . . . . . . . . . . . 36 21 . . . . . . 164 . . . . . 124 . Longest Duration 123 | . . . . . . . . . . . 31 16 . . . . . . 123 . . . . . 79 . Martial Activations . | . . . . . . . . . . . . . . . . . . . . . . . . . . . Shielding Activations . | . . . . . . . . . . . . . . . . . . . . . . . . . . . Robots Disrupted . | . . . . . . . . . . . . . . . . . . . . . . . . . . . Combat Hostiles . | . . . . . . . . . . . . . . . . . . . . . . . . . . . Robots Corrupted 13 | . . . . . . . . 2 . . . 1 . . 2 3 . . 1 1 2 . . . 1 . Combat Hostiles 10 | . . . . . . . . 2 . . . 1 . . 2 3 . . . 1 1 . . . . . Parts Fried 39 | . . . . . . . . 4 . . 5 2 . . 3 7 . . 6 3 8 . . . 1 . Impact Corruptions 7 | . . . . . . . . . . . . . . . . . . . 1 1 . . . . 5 . Robots Melted 2 | . 1 . . . . . . . . . . . . . . . . . . . . . . . . 1 Combat Hostiles 1 | . . . . . . . . . . . . . . . . . . . . . . . . . . 1 Parts Melted 16 | . 5 . . . . . 2 . . 2 . . . . . . . . . 3 . 2 . . . 2 Heat Transferred 5429 | 370 2629 . . . . . 198 . 755 259 50 50 . . . . . . . 350 . 370 . . 148 250 Parts Sabotaged 9 | . . . . . . . . . . . . . . . . . . . . . . . . . 9 . Parts Stolen 5 | . . . . . . . . . . . . 5 . . . . . . . . . . . . . . Parts Stripped . | . . . . . . . . . . . . . . . . . . . . . . . . . . . Power Chain Reactions 7 | . . . . . . . 1 . . . 2 1 . . . . . . 3 . . . . . . . Alert | -11 -10 -10 -10 -9 -8 -8 -8 -6 -6 -5 -5 -5 -5 -4 -4 -4 -4 -4 -4 -3 -3 -3 -2 -2 -2 -1 ------- Run | Yrd Mat Min Exi Min Mat Sto Rec Fac Gar Fac Upp Upp Zhi Pro Fac Ext Cet Arc Hub Res Tes Gar Res Qua Frg Acc Maximum Alert Level 5 | . 1 . . . 2 2 1 1 3 2 . . . . 1 3 3 2 4 5 3 5 4 3 5 5 Low Security (%) 26 | 100 92 100 . 100 49 . 94 45 9 . . . . . 54 5 . . 5 . . . . . . . Level 1 19 | . 7 . . . 48 78 5 54 16 21 . . . . 45 40 . 55 20 24 . . . 58 . . Level 2 18 | . . . . . 2 21 . . 34 78 . . . . . 20 83 44 29 19 51 . 13 12 14 . Level 3 20 | . . . . . . . . . 39 . . . . . . 34 16 . 28 37 48 27 46 29 22 . Level 4 4 | . . . . . . . . . . . . . . . . . . . 15 17 . 20 40 . 8 . Level 5 9 | . . . . . . . . . . . . . . . . . . . . 1 . 51 . . 54 100 High Security . | . . . . . . . . . . . . . . . . . . . . . . . . . . . Max Security . | . . . . . . . . . . . . . . . . . . . . . . . . . . . Peak Influence 3856 | 5 222 63 . 153 531 422 223 272 987 518 . . . . 300 983 772 459 1462 1667 1096 1916 1137 1014 3856 2572 Initial 2312 | . . 63 . . 19 224 150 267 136 518 . . . . 11 113 524 302 107 748 936 719 1077 334 558 2312 Average 659 | 1 61 17 . 42 198 294 65 207 593 436 . . . . 132 552 632 386 690 748 761 1455 1005 522 1846 2336 Influence Increases 21001 | 5 529 80 . 287 1040 461 416 400 871 71 240 300 15 320 483 1820 606 293 2180 1800 1240 1217 178 1192 4507 450 Destroy 0b10 Robot/C 9820 | . 240 60 . 100 500 200 120 80 360 . 140 100 . 180 240 860 200 80 700 840 700 680 40 500 2780 120 Destroy 0b10 Robot/NC 840 | 5 65 . . 10 90 20 30 15 25 10 . 20 15 . 35 70 10 35 110 15 40 15 25 65 100 15 Destroy Leader 1458 | . 70 10 . 30 146 56 10 40 30 2 10 . . 20 54 84 10 . 162 182 68 50 26 80 308 10 Allied During Kill 1273 | . . 10 . . . 144 57 . 6 . . . . . . 352 177 115 209 29 . 9 17 143 5 . Successful Hack 382 | . 20 . . . 18 . 58 14 14 32 . . . . . 29 9 . 14 36 26 22 21 24 10 35 Select Force Hacks 120 | . . . . . . . 120 . . . . . . . . . . . . . . . . . . . Disable Machine 1245 | . 75 . . 30 60 30 15 . . . . . . . 30 45 . 45 375 15 120 45 . 90 240 30 Anti-Garrison Action 650 | . . . . . . . . . 300 . . . . . . . . . 150 . . 200 . . . . Destroy Structure 1955 | . 44 . . . 49 11 6 1 106 12 . . . . 64 86 28 18 430 136 156 181 34 24 494 75 Advance Influence 250 | . . . . . . . . 250 . . . . . . . . . . . . . . . . . . Partial Spotted 165 | . . . . . . . . . 15 . . . . . . 45 . . . . . . 15 30 45 15 Lose Combat Pursuer 1485 | . 15 . . 15 75 . . . 15 15 90 180 . 120 60 105 . . 30 75 . 15 . . 525 150 Miscellaneous 1358 | . . . . 102 102 . . . . . . . . . . 144 172 . . 472 130 . . 236 . . Influence Decreases 18449 | 5 365 244 . 237 559 605 761 247 79 691 471 436 15 302 269 1116 786 740 1063 1561 1946 260 1499 795 1644 1753 Entered New Map 7311 | . . 101 . . 31 307 237 25 59 469 137 27 . . 7 119 412 454 202 678 729 240 839 261 434 1543 Time Decay 8200 | 5 365 123 . 237 498 238 471 222 . 222 334 389 15 302 262 607 334 246 506 693 607 . 170 474 700 180 Lost Part 400 | . . . . . 30 . . . 20 . . 20 . . . 20 . . . 20 10 20 . . 230 30 Lost Ally 763 | . . 20 . . . 60 53 . . . . . . . . 220 40 40 80 20 . . 40 60 130 . Purge Threat 1775 | . . . . . . . . . . . . . . . . 150 . . 275 150 600 . 450 . 150 . Squads Dispatched 92 | . 3 . . 2 7 2 1 3 . 2 . . . 1 5 5 1 . 8 5 7 . 2 6 29 3 Investigation 14 | . . . . 2 1 1 1 . . . . . . . 1 2 . . 1 3 . . 1 . . 1 Extermination 27 | . . . . . . . . 1 . 1 . . . . 2 1 1 . 2 . 5 . . 4 8 2 Reinforcement 22 | . 3 . . . 4 1 . 1 . . . . . . 2 1 . . 3 2 . . 1 1 3 . Assault 26 | . . . . . . . . . . 1 . . . 1 . 1 . . 2 . 2 . . 1 18 . Garrison 3 | . . . . . 2 . . 1 . . . . . . . . . . . . . . . . . . Intercept . | . . . . . . . . . . . . . . . . . . . . . . . . . . . Searches Triggered . | . . . . . . . . . . . . . . . . . . . . . . . . . . . Construction Impeded 1 | . . . . . 1 . . . . . . . . . . . . . . . . . . . . . Haulers Reinforced . | . . . . . . . . . . . . . . . . . . . . . . . . . . . Active Scanning Responses . | . . . . . . . . . . . . . . . . . . . . . . . . . . . Cargo Convoy Interrupts . | . . . . . . . . . . . . . . . . . . . . . . . . . . . Stealth | -11 -10 -10 -10 -9 -8 -8 -8 -6 -6 -5 -5 -5 -5 -4 -4 -4 -4 -4 -4 -3 -3 -3 -2 -2 -2 -1 --------- Run | Yrd Mat Min Exi Min Mat Sto Rec Fac Gar Fac Upp Upp Zhi Pro Fac Ext Cet Arc Hub Res Tes Gar Res Qua Frg Acc Distress Signals 24 | . 2 . . . 3 . 1 . . . . . . . 1 1 2 . 3 9 . . . . 1 1 Communications Jammed 7 | . . . . . . . . . . . . 1 . . . 2 . . . . . . . 2 2 . Distress Signals 6 | . . . . . . . . . . . . 1 . . . 2 . . . . . . . 2 1 . Times Spotted 748 | . 25 2 10 6 47 10 10 6 20 1 12 25 1 10 22 59 12 15 54 52 37 40 6 30 216 20 Peak Tracking Total 31 | . 5 2 9 2 7 3 4 2 4 1 6 5 1 7 5 8 5 1 9 10 5 8 1 5 31 12 Tactical Retreats 48 | . 1 . 1 1 4 . . . 1 1 2 5 . 4 2 5 . . 2 4 . 1 . . 11 3 Traps | -11 -10 -10 -10 -9 -8 -8 -8 -6 -6 -5 -5 -5 -5 -4 -4 -4 -4 -4 -4 -3 -3 -3 -2 -2 -2 -1 ------- Run | Yrd Mat Min Exi Min Mat Sto Rec Fac Gar Fac Upp Upp Zhi Pro Fac Ext Cet Arc Hub Res Tes Gar Res Qua Frg Acc Traps Triggered 44 | . . . . . 1 . . 1 8 . . . . . 4 3 . . . . . 6 3 2 15 1 Indirectly 2 | . . . . . . . . . . . . . . . 2 . . . . . . . . . . . Trap Hack Attempts . | . . . . . . . . . . . . . . . . . . . . . . . . . . . Triggered . | . . . . . . . . . . . . . . . . . . . . . . . . . . . Disarmed . | . . . . . . . . . . . . . . . . . . . . . . . . . . . Reprogrammed . | . . . . . . . . . . . . . . . . . . . . . . . . . . . Reused . | . . . . . . . . . . . . . . . . . . . . . . . . . . . Traps Extracted . | . . . . . . . . . . . . . . . . . . . . . . . . . . . Installed . | . . . . . . . . . . . . . . . . . . . . . . . . . . . Triggered . | . . . . . . . . . . . . . . . . . . . . . . . . . . . Machines | -11 -10 -10 -10 -9 -8 -8 -8 -6 -6 -5 -5 -5 -5 -4 -4 -4 -4 -4 -4 -3 -3 -3 -2 -2 -2 -1 ---------- Run | Yrd Mat Min Exi Min Mat Sto Rec Fac Gar Fac Upp Upp Zhi Pro Fac Ext Cet Arc Hub Res Tes Gar Res Qua Frg Acc Machines Disabled 111 | . 5 . 8 2 4 2 2 . 3 . . 1 1 . 2 6 . 3 26 1 8 6 1 6 22 2 Max in Single Turn 14 | . 5 . 1 1 1 1 1 . 2 . . 1 1 . 1 1 . 1 14 1 1 1 1 1 2 1 Garrison Access 8 | . . . . . . . . . . . . . . . 1 . . . 1 2 . . 2 1 1 . Garrison Relay 3 | . . . . . . . . . 1 . . . . . . . . . . . . 2 . . . . Phase Generator 1 | . . . . . . . . . 1 . . . . . . . . . . . . . . . . . Network Hub 2 | . . . . . . . . . . . . . . . . . . . 2 . . . . . . . Energy Cycler 1 | . . . . . . . . . . . . . . . . . . . . . . . . . . 1 Machines Repaired . | . . . . . . . . . . . . . . . . . . . . . . . . . . . Machines Dismantled 4 | . . . . . . 1 . . . . . . . . . 2 . . 1 . . . . . . . Machines Sabotaged . | . . . . . . . . . . . . . . . . . . . . . . . . . . . Overloaded Fab Kills . | . . . . . . . . . . . . . . . . . . . . . . . . . . . Hacking | -11 -10 -10 -10 -9 -8 -8 -8 -6 -6 -5 -5 -5 -5 -4 -4 -4 -4 -4 -4 -3 -3 -3 -2 -2 -2 -1 --------- Run | Yrd Mat Min Exi Min Mat Sto Rec Fac Gar Fac Upp Upp Zhi Pro Fac Ext Cet Arc Hub Res Tes Gar Res Qua Frg Acc Machines Accessed 116 | . 7 . 2 2 6 4 13 4 1 5 . 2 2 . 9 10 1 . 5 5 8 2 8 9 7 4 Terminals 69 | . 5 . . . 5 3 6 2 1 2 . . . . 3 8 1 . 5 2 5 2 4 6 6 3 Fabricators 3 | . . . . . . . . . . 1 . . . . 2 . . . . . . . . . . . Repair Stations 1 | . . . . . . . . . . . . . . . . . . . . . . . 1 . . . Recycling Units 19 | . 2 . . . 1 1 6 1 . 2 . . . . 2 2 . . . . . . 1 . . 1 Scanalyzers 6 | . . . . . . . . . . . . . . . 1 . . . . 1 2 . . 2 . . Garrison Access 9 | . . . . . . . . 1 . . . . . . 1 . . . . 2 1 . 2 1 1 . Total Hacks 268 | . 14 . 2 2 11 5 33 7 1 9 . 2 9 . 19 24 1 . 14 17 27 5 16 19 12 19 Successful 134 | . 9 . 2 2 9 3 19 2 1 3 . 2 9 . 7 10 1 . 5 7 13 2 9 9 7 3 Failed 134 | . 5 . . . 2 2 14 5 . 6 . . . . 12 14 . . 9 10 14 3 7 10 5 16 Catastrophic 25 | . 3 . . . 1 2 1 . . 2 . . . . 1 . . . 1 1 2 . 4 1 2 4 Database Lockouts . | . . . . . . . . . . . . . . . . . . . . . . . . . . . Manual 113 | . 12 . 1 . 9 6 22 1 . 1 . . . . 6 9 1 . 6 6 5 . 4 9 5 10 Terminals 174 | . 11 . . . 10 4 12 3 1 5 . . . . 8 21 1 . 14 8 22 5 11 10 11 17 Fabricators 5 | . . . . . . . . . . 1 . . . . 4 . . . . . . . . . . . Repair Stations 1 | . . . . . . . . . . . . . . . . . . . . . . . 1 . . . Recycling Units 40 | . 3 . . . 1 1 19 2 . 3 . . . . 4 3 . . . . . . 2 . . 2 Scanalyzers 21 | . . . . . . . . . . . . . . . 2 . . . . 7 4 . . 8 . . Garrison Access 10 | . . . . . . . . 2 . . . . . . 1 . . . . 2 1 . 2 1 1 . Terminal Hacks 63 | . 1 . 2 2 2 2 3 . 1 2 . 2 9 . 1 6 1 . 3 2 9 2 5 2 5 1 Record 3 | . . . 1 . . . . . . . . 1 1 . . . . . . . . . . . . . Robot Analysis 6 | . . . . . . . . . . 1 . . 4 . . . . . 1 . . . . . . . Prototype ID Bank 5 | . . . . . 1 . . . . . . . 4 . . . . . . . . . . . . . Open Door 8 | . . . . 2 . 1 . . . . . 1 . . 1 2 1 . . . . . . . . . Level Access Points 2 | . . . . . . . . . . . . . . . . . . . . . 1 . . . . 1 Branch Access Points 2 | . . . . . . . . . . 1 . . . . . . . . . . . . 1 . . . Emergency Access Points 2 | . . . . . . . . . 1 . . . . . . . . . . . . 1 . . . . Machine Index 1 | . . . . . . . . . . . . . . . . . . . . . 1 . . . . . Terminal Index 1 | . . . . . . . . . . . . . . . . . . . . 1 . . . . . . Alert Level 1 | . . . . . . . . . . . . . . . . 1 . . . . . . . . . . Unreport Threat 10 | . . . . . . . . . . . . . . . . 1 . . . 1 4 . 3 . 1 . Locate Traps 10 | . 1 . . . 1 1 . . . . . . . . . 1 . . 1 . 2 . 1 1 1 . Maintenance Status 1 | . . . . . . . . . . . . . . . . . . . . . . . . . 1 . Recall Reinforcements 1 | . . . . . . . . . . . . . . . . . . . . . . . . 1 . . Zone Layout 5 | . . . . . . . 1 . . . . . . . . 1 . . 1 . 1 . . . 1 . Security Stations 1 | . . . . . . . . . . . . . . . . . . . . . . 1 . . . . Proto ID Catalog 2 | . . . 1 . . . . . . . . . . . . . . . . . . . . . 1 . Release Object 2 | . . . . . . . 2 . . . . . . . . . . . . . . . . . . . Fabricator Hacks 2 | . . . . . . . . . . 1 . . . . 1 . . . . . . . . . . . Network Status 2 | . . . . . . . . . . 1 . . . . 1 . . . . . . . . . . . Repair Station Hacks . | . . . . . . . . . . . . . . . . . . . . . . . . . . . Recycling Unit Hacks 13 | . 1 . . . 1 1 5 . . . . . . . 2 2 . . . . . . 1 . . . Retrieve Components 13 | . 1 . . . 1 1 5 . . . . . . . 2 2 . . . . . . 1 . . . Scanalyzer 10 | . . . . . . . . . . . . . . . 2 . . . . 2 2 . . 4 . . Insert Component 7 | . . . . . . . . . . . . . . . 1 . . . . . 2 . . 4 . . Retrieve Study 3 | . . . . . . . . . . . . . . . 1 . . . . 2 . . . . . . Garrison Access Hacks 9 | . . . . . . . . 1 . . . . . . 1 . . . . 2 1 . 2 1 1 . Unlock Access 2 | . . . . . . . . 1 . . . . . . . . . . . . 1 . . . . . Seal Access 7 | . . . . . . . . . . . . . . . 1 . . . . 2 . . 2 1 1 . Unauthorized Hacks 37 | . 7 . . . 6 . 11 1 . . . . . . . 2 . . 2 1 1 . 1 2 1 2 Terminals 30 | . 7 . . . 6 . 5 1 . . . . . . . 2 . . 2 1 1 . . 2 1 2 Botnet 15 | . 3 . . . 1 . . 1 . . . . . . . 2 . . 1 1 1 . . 2 1 2 Skim 15 | . 4 . . . 5 . 5 . . . . . . . . . . . 1 . . . . . . . Fabricators . | . . . . . . . . . . . . . . . . . . . . . . . . . . . Repair Stations 1 | . . . . . . . . . . . . . . . . . . . . . . . 1 . . . Patch 1 | . . . . . . . . . . . . . . . . . . . . . . . 1 . . . Recycling Units 6 | . . . . . . . 6 . . . . . . . . . . . . . . . . . . . Mask 2 | . . . . . . . 2 . . . . . . . . . . . . . . . . . . . Tunnel 4 | . . . . . . . 4 . . . . . . . . . . . . . . . . . . . Scanalyzers . | . . . . . . . . . . . . . . . . . . . . . . . . . . . Garrison Access . | . . . . . . . . . . . . . . . . . . . . . . . . . . . Data Cores Recovered 9 | . . . . . . . . 1 . . . . . . . 1 . . . 1 1 . . 2 3 . Used 2 | . . . . . . . . . . . . . . . . . . . . . . . . . 2 . Hacking Detections 64 | . 4 . . . 3 3 9 3 . 5 . . . . 5 6 . . 3 3 6 1 4 3 2 4 Full Trace Events 4 | . . . . . . 1 1 . . . . . . . 1 . . . . . . . . . . 1 Feedback Events . | . . . . . . . . . . . . . . . . . . . . . . . . . . . Feedback Blocked . | . . . . . . . . . . . . . . . . . . . . . . . . . . . Robot Schematics Acquired 6 | . . . . . . . . . . . . . . . . . . . . . 1 . . . 5 . Robots Built . | . . . . . . . . . . . . . . . . . . . . . . . . . . . Authchips . | . . . . . . . . . . . . . . . . . . . . . . . . . . . Time . | . . . . . . . . . . . . . . . . . . . . . . . . . . . Total Robot Build Rating . | . . . . . . . . . . . . . . . . . . . . . . . . . . . Part Schematics Acquired 15 | . . . . . . . . . . . . . . . . . . . . . 5 . . . 10 . Parts Built . | . . . . . . . . . . . . . . . . . . . . . . . . . . . Authchips . | . . . . . . . . . . . . . . . . . . . . . . . . . . . Time . | . . . . . . . . . . . . . . . . . . . . . . . . . . . Total Part Build Rating . | . . . . . . . . . . . . . . . . . . . . . . . . . . . Part Studies Acquired 3 | . . . . . . . . . . . . . . . 1 . . . . 2 . . . . . . Parts Repaired . | . . . . . . . . . . . . . . . . . . . . . . . . . . . Time . | . . . . . . . . . . . . . . . . . . . . . . . . . . . Parts Recycled . | . . . . . . . . . . . . . . . . . . . . . . . . . . . Recycled Matter . | . . . . . . . . . . . . . . . . . . . . . . . . . . . Retrieved Matter . | . . . . . . . . . . . . . . . . . . . . . . . . . . . Retrieved Components 31 | . 1 . . . 9 3 5 . . . . . . . 2 10 . . . . . . 1 . . . Parts Scanalyzed . | . . . . . . . . . . . . . . . . . . . . . . . . . . . Part Schematics Acquired . | . . . . . . . . . . . . . . . . . . . . . . . . . . . Parts Damaged . | . . . . . . . . . . . . . . . . . . . . . . . . . . . Bothacking | -11 -10 -10 -10 -9 -8 -8 -8 -6 -6 -5 -5 -5 -5 -4 -4 -4 -4 -4 -4 -3 -3 -3 -2 -2 -2 -1 ------------ Run | Yrd Mat Min Exi Min Mat Sto Rec Fac Gar Fac Upp Upp Zhi Pro Fac Ext Cet Arc Hub Res Tes Gar Res Qua Frg Acc Used RIF Installer 3 | . . . . . . . . . 1 . . . . . . . . . . . . 2 . . . . Coupler Efficiency 1 | . . . . . . . . . 1 . . . . . . . . . . . . . . . . . Hotswap 1 | . . . . . . . . . . . . . . . . . . . . . . 1 . . . . Autooverride 1 | . . . . . . . . . . . . . . . . . . . . . . 1 . . . . Robots Hacked 5 | . . . . . . . . . . . . . 3 . . . . . 1 . . . . . 1 . Non-combat 2 | . . . . . . . . . . . . . . . . . . . 1 . . . . . 1 . Combat 3 | . . . . . . . . . . . . . 3 . . . . . . . . . . . . . Robot Hacks Applied 7 | . . . . . . . . . . . . . 3 . . . . . 3 . . . . . 1 . parse_system 3 | . . . . . . . . . . . . . 3 . . . . . . . . . . . . . purge_threat 2 | . . . . . . . . . . . . . . . . . . . 2 . . . . . . . formatsys_low 2 | . . . . . . . . . . . . . . . . . . . 1 . . . . . 1 . Relay Couplers Released 27 | . . . . . . . . . 8 . . . . . . . . . 2 1 . 8 2 2 4 . Machine Destruction 20 | . . . . . . . . . 5 . . . . . . . . . 2 1 . 8 2 2 . . Programmers 7 | . . . . . . . . . 3 . . . . . . . . . . . . . . . 4 . Attached 2 | . . . . . . . . . . . . . . . . . . . 1 . . . . . 1 . Fabnet Peak Effective % . | . . . . . . . . . . . . . . . . . . . . . . . . . . . Robots Rewired 13 | . . . . . . . . . . . . . . . . 12 . . . . . 1 . . . . Allies Hacked 1 | . . . . . . . . . . . . . . . . . . . . . . . . . 1 . Hacks Repelled . | . . . . . . . . . . . . . . . . . . . . . . . . . . . Allies | -11 -10 -10 -10 -9 -8 -8 -8 -6 -6 -5 -5 -5 -5 -4 -4 -4 -4 -4 -4 -3 -3 -3 -2 -2 -2 -1 -------- Run | Yrd Mat Min Exi Min Mat Sto Rec Fac Gar Fac Upp Upp Zhi Pro Fac Ext Cet Arc Hub Res Tes Gar Res Qua Frg Acc Total Allies 54 | . . 3 . . . 10 . . 1 . . . . . . 16 5 . 1 1 . 4 . 3 10 . Largest Group 11 | . . 3 2 . . 10 6 . 1 . . . . . . 11 9 6 4 1 . 3 2 3 4 . Highest-Rated Group 758 | . . 40 24 . . 173 109 . 79 . . . . . . 444 758 456 372 145 . 171 109 207 196 . Highest-Rated Ally 159 | . . 16 16 . . 29 29 . 79 . . . . . . 159 159 96 96 145 . 80 80 69 145 . Total Orders 26 | . . . 3 . 2 . 1 . . . . . . . . 2 2 2 4 . . 1 . 4 5 . STAY 14 | . . . 2 . . . 1 . . . . . . . . 1 1 1 2 . . 1 . 2 3 . FOLLOW 9 | . . . 1 . . . . . . . . . . . . 1 1 1 2 . . . . 2 1 . AID 1 | . . . . . . . . . . . . . . . . . . . . . . . . . 1 . RETURN 2 | . . . . . 2 . . . . . . . . . . . . . . . . . . . . . Ally Attacks 426 | . . 7 19 . 1 55 42 . 3 . . . . . . 94 58 20 42 9 . 4 9 42 21 . Total Damage 12374 | . . 89 686 . 1 637 487 . 376 . . . . . . 2425 1484 655 2023 167 . 283 345 2098 618 . Kills 61 | . . 3 3 . . 6 4 . 1 . . . . . . 13 9 3 9 1 . 1 1 5 2 . Allies Corrupted 2 | . . . . . . . . . . . . . . . . . . . . . . . . 2 . . Allies Melted 2 | . . . . . . . . . . . . . . . . 1 . . . . . . . . 1 . Turrets Deployed 3 | . . . 3 . . . . . . . . . . . . . . . . . . . . . . . X0-1V1 Amusement Gains 589 | . 25 . 60 . 10 . 90 5 34 . . . 25 5 2 24 10 . 30 82 . 20 10 . 157 . Average Entertainment 51 | . 24 13 . 34 18 16 62 66 88 100 49 21 . 22 9 18 13 15 18 77 63 69 93 47 77 67 Good Acts 232 | . . . . 1 3 2 9 5 16 3 10 14 . 14 10 15 4 2 9 19 4 12 4 19 49 8 Bad Acts 152 | . . . . 6 5 1 6 2 5 . 1 6 . 3 4 12 6 1 7 15 11 3 1 14 42 1 Intel | -11 -10 -10 -10 -9 -8 -8 -8 -6 -6 -5 -5 -5 -5 -4 -4 -4 -4 -4 -4 -3 -3 -3 -2 -2 -2 -1 ------- Run | Yrd Mat Min Exi Min Mat Sto Rec Fac Gar Fac Upp Upp Zhi Pro Fac Ext Cet Arc Hub Res Tes Gar Res Qua Frg Acc Active Infowar (turns) 21725 | . . . . . 153 . . 358 1971 476 745 1734 483 1305 979 1970 756 533 1366 2840 1966 1275 342 1201 968 304 Optics 14117 | . . . . . 153 . . . . . . . . . 960 1970 756 533 1366 2840 1966 1275 342 1201 755 . Sensors 5367 | . . . . . . . . . . 444 712 1656 483 1305 461 . . . . . . . 2 . . 304 IFF 2300 | . . . . . . . . . . . . . . . . . . . . . . 2 328 1097 873 . Terrain 2 | . . . . . . . . . . . . . . . . . . . . . . . 2 . . . Jamming 8560 | . . . . . . . . 358 1971 476 745 1245 . . 913 227 . . . . . 557 341 987 740 . ECM 2 | . . . . . . . . . . . . . . . . . . . . . . . . . 2 . Robot Analysis Total 6 | . . . . . . . . . . 1 . . 4 . . . . . 1 . . . . . . . Derelict Logs Recovered 7 | . . 1 . 2 . . . . . . 2 1 . 1 . . . . . . . . . . . . Drone Launches 2 | . . . . . 2 . . . . . . . . . . . . . . . . . . . . . Drone Recoveries 2 | . . . . . 2 . . . . . . . . . . . . . . . . . . . . . Exploration | -11 -10 -10 -10 -9 -8 -8 -8 -6 -6 -5 -5 -5 -5 -4 -4 -4 -4 -4 -4 -3 -3 -3 -2 -2 -2 -1 ------------- Run | Yrd Mat Min Exi Min Mat Sto Rec Fac Gar Fac Upp Upp Zhi Pro Fac Ext Cet Arc Hub Res Tes Gar Res Qua Frg Acc Turns Passed 33456 | 73 1684 478 2073 1170 1350 514 2302 465 1976 476 772 1766 483 1305 979 1970 756 533 1366 2840 1966 1275 342 1201 2980 361 Spaces Moved 22548 | 35 725 217 927 523 544 244 1274 387 868 539 892 997 164 831 901 995 238 93 639 1227 1138 1069 619 2164 3582 716 Core 6 | 5 . . . . . . . . 1 . . . . . . . . . . . . . . . . . Treads 8050 | 30 131 . 7 . . . 393 63 396 534 892 820 . . 14 540 3 58 639 658 925 219 . . 1012 716 Legs 1623 | . . . . . . . . . 27 . . . 11 780 . 35 184 . . 426 160 . . . . . Wheels 4682 | . 594 217 920 523 544 244 881 324 105 . . 177 153 . . . . . . . . . . . . . Hover 7118 | . . . . . . . . . 339 5 . . . . . 420 51 35 . 17 48 850 619 2164 2570 . Flight 1069 | . . . . . . . . . . . . . . 51 887 . . . . 126 5 . . . . . Fastest Speed 37 | 50 160 215 135 140 140 155 109 86 86 68 68 84 102 60 60 62 85 133 133 113 87 37 37 37 37 37 Average Speed 99 | 147 199 215 190 206 151 155 146 89 163 68 70 101 179 99 60 90 145 150 133 160 141 58 37 37 37 37 Slowest Speed 1950 | 160 215 215 320 215 215 155 215 109 1950 151 84 185 185 102 62 155 179 179 133 251 203 131 37 37 37 37 Overloaded Moves . | . . . . . . . . . . . . . . . . . . . . . . . . . . . Propulsion Burnouts . | . . . . . . . . . . . . . . . . . . . . . . . . . . . Robots Hopped . | . . . . . . . . . . . . . . . . . . . . . . . . . . . Potential Cave-ins 6 | . . . . . . . . . . . . . . . . . . . . . . . . . 6 . Cave-ins Triggered . | . . . . . . . . . . . . . . . . . . . . . . . . . . . Teleports 5 | . . . . . . . . . . . . . . . . . . . . . . . . 4 1 . Exploration Rate (%) 63 | 4 99 49 90 96 38 43 98 9 84 15 94 92 60 85 32 91 77 89 69 32 94 88 17 95 49 17 Regions Visited 26 Branch Regions 16 Pre-discovered Areas 10 | . . . 1 . 1 . 7 . . . . 1 . . . . . . . . . . . . . . Known Exits Taken 12 | . . . . . 1 . . 1 . 1 . 1 . 1 1 . . . 1 1 1 . 1 1 1 . Unknown Exits Taken 12 | 1 1 1 1 1 . 1 1 . . . 1 . 1 . . 1 1 1 . . . . . . . . Scrap Searched 11 | . . 1 . 3 . . . . . . 4 2 . 1 . . . . . . . . . . . . Spaces Dug 94 | . . . . . . . . . 3 6 . 1 . 7 8 6 . . 1 5 19 2 6 4 15 11 Terrain Destroyed 1178 | . 41 . 14 . 58 13 7 . 114 7 12 65 1 68 36 47 12 8 291 73 83 64 9 8 110 37 Melee 21 | . . . . . . . . . . 2 . . . 5 8 5 . . . . . . . . . 1 Projectile 464 | . . . . . . . . . 14 5 . 7 1 10 4 29 12 8 104 58 67 40 9 8 70 18 AOE 693 | . 41 . 14 . 58 13 7 . 100 . 12 58 . 53 24 13 . . 187 15 16 24 . . 40 18 Terrain Rammed . | . . . . . . . . . . . . . . . . . . . . . . . . . . . Walls Destroyed . | . . . . . . . . . . . . . . . . . . . . . . . . . . . Machines Disabled . | . . . . . . . . . . . . . . . . . . . . . . . . . . . Actions | -11 -10 -10 -10 -9 -8 -8 -8 -6 -6 -5 -5 -5 -5 -4 -4 -4 -4 -4 -4 -3 -3 -3 -2 -2 -2 -1 --------- Run | Yrd Mat Min Exi Min Mat Sto Rec Fac Gar Fac Upp Upp Zhi Pro Fac Ext Cet Arc Hub Res Tes Gar Res Qua Frg Acc Total 31805 | 48 871 230 1161 583 881 341 1675 474 1325 638 1023 1695 337 1283 1273 1940 630 464 967 1972 1420 1639 715 2497 4943 780 Wait 6063 | 1 43 7 91 20 115 46 331 36 257 72 90 614 155 415 269 645 319 333 161 538 142 436 46 181 685 15 Move 22520 | 34 724 216 926 522 544 243 1273 386 866 538 891 996 163 830 900 994 237 92 638 1226 1137 1067 618 2163 3581 715 Hop . | . . . . . . . . . . . . . . . . . . . . . . . . . . . Pick Up 287 | 4 24 2 34 6 21 4 5 6 11 6 8 4 3 1 12 13 9 . 8 14 9 5 4 18 49 7 Fast Attach 181 | 6 5 . 5 2 9 2 3 . 4 1 1 5 . . 7 5 9 7 9 24 4 3 8 12 39 11 Attach 75 | . . . . . 5 . 1 5 5 2 . 1 . 3 4 2 . . 3 6 6 3 3 1 20 5 Detach 35 | . 3 . 1 . 1 . 2 2 5 . . . . 1 1 1 . 2 2 3 3 2 1 . 3 2 Swap 279 | . 10 1 9 5 25 9 3 4 6 4 10 16 2 7 8 16 3 . 9 17 14 5 2 30 60 4 Drop 387 | . 10 3 40 11 33 8 20 6 11 6 9 7 . 3 14 16 18 2 16 38 12 5 11 20 68 . Fire 1689 | 3 52 1 55 17 128 21 37 28 107 7 14 52 6 17 23 92 35 28 117 106 93 110 22 72 426 20 Melee 71 | . . . . . . . . 1 2 2 . . 8 6 33 18 . . . . . . . . . 1 Ram 2 | . . . . . . . . . . . . . . . . . . . . . . . . . 2 . Kick . | . . . . . . . . . . . . . . . . . . . . . . . . . . . Crush 11 | . . . . . . . . . . . . . . . . . . . 1 . . . . . 10 . Escape Stasis 79 | . . . . . . . . . 51 . . . . . 2 26 . . . . . . . . . . Rewire 99 | . . . . . . . . . . . . . . . . 96 . . . . . 3 . . . . Trap . | . . . . . . . . . . . . . . . . . . . . . . . . . . . Miscellaneous 27 | . . . . . . 8 . . . . . . . . . 16 . . 3 . . . . . . . Route ------- -11/Scrapyard -10/Materials (discovered 6 exits: [*Mat x3] / [*Min x2] / [*Sub]) -10/Mines (discovered 4 exits: [*Mat x2] / *Exi / [*Sub]) -10/Exiles -9/Mines (discovered 2 exits: *Mat x2) -8/Materials (discovered 2 exits: [*Fac] / *Sto) -8/Storage -8/Recycling -6/Factory (discovered 3 exits: Low x2 / Gar) -6/Garrison (discovered 3 exits: *Fac x3) -5/Factory (discovered 3 exits: Fac / *Upp x2) -5/Upper Caves -5/Upper Caves (discovered 2 exits: *Fac / *Zhi) -5/Zhirov -4/Proximity Caves -4/Factory (discovered 8 exits: *Res x3 / *Upp x2 / *Ext x2 / Arm) -4/Extension (discovered 2 exits: *Res / *Cet) -4/Cetus (discovered 2 exits: *Res / [*Arc]) -4/Archives (discovered 3 exits: *Res / *Hub x2) -4/Hub_04(d) (discovered 2 exits: *Res x2) -3/Research (discovered 2 exits: Res / *Tes) -3/Testing (discovered 2 exits: *Res / Gar) -3/Garrison (discovered 3 exits: *Res x3) -2/Research (discovered 2 exits: *Qua x2) -2/Quarantine (discovered 3 exits: *Acc / [*Sec] / *Frg) -2/Protoforge -1/Access To Epsilon Eridani History --------- Turn | Location | Event 44 | -11/Scrapyard | Discovered new exit (range 14) 74 | -11/Scrapyard | Entered Materials 302 | -10/Materials | Build established: Mutant 408 | -10/Materials | Discovered new exit (range 11) 606 | -10/Materials | Discovered new exit (range 9) 709 | -10/Materials | Discovered new exit (range 9) 890 | -10/Materials | Discovered new exit (range 15) 1373 | -10/Materials | Discovered new exit (range 12) 1617 | -10/Materials | Discovered new exit (range 13) 1642 | -10/Materials | Prayed at D.C.S.S. Altar Unit 1758 | -10/Materials | Entered Mines 1776 | -10/Mines | Assisted by bots powering up and referring to "LRC-V3" 1825 | -10/Mines | Discovered new exit (range 8) 1909 | -10/Mines | Discovered new exit (range 10) 2055 | -10/Mines | Learned Materials stockpile data 2063 | -10/Mines | Discovered new exit (range 6) 2119 | -10/Mines | A weapon hastily lodged in a ceiling crevice suddenly fell to the ground 2189 | -10/Mines | Deemed a non-threat by the Exiles lab entrance 2189 | -10/Mines | Discovered new exit (range 5) 2236 | -10/Mines | Entered Exiles 2236 | -10/Exiles | Accompanied by 2 allies 2290 | -10/Exiles | Met 8R-AWN 2327 | -10/Exiles | Met EX-HEX 2411 | -10/Exiles | Met EX-DEC 2419 | -10/Exiles | Learned location of Zion (-6) 2867 | -10/Exiles | Met EX-BIN 2897 | -10/Exiles | Aligned with FarCom system 2900 | -10/Exiles | Given EX-Vault access code 2949 | -10/Exiles | Opened EX-Vault 2971 | -10/Exiles | Found Deploy-a-Sentry 2974 | -10/Exiles | Found Deploy-a-Sentry 2977 | -10/Exiles | Found Deploy-a-Sentry 3019 | -10/Exiles | Warned to stay clear of 0b10 Research branches 3239 | -10/Exiles | Attacked by the Exiles 3285 | -10/Exiles | DAS Turret deployed 3296 | -10/Exiles | DAS Turret deployed 3307 | -10/Exiles | DAS Turret deployed 3329 | -10/Exiles | Allies destroyed 8R-AWN 3646 | -10/Exiles | Destroyed EX-HEX 3707 | -10/Exiles | Destroyed EX-BIN 3812 | -10/Exiles | Destroyed EX-DEC 3837 | -10/Exiles | Found Deploy-a-Sentry 4163 | -10/Exiles | Found Firepult 4298 | -10/Exiles | Discovered new exit (range 10) 4309 | -10/Exiles | Stole two prototypes: Firepult, Deploy-a-Sentry 4309 | -10/Exiles | Entered Mines 4311 | -9/Mines | Met a Derelict bent on vengeance 4337 | -9/Mines | Discovered new exit (range 12) 4365 | -9/Mines | Met a Derelict shopkeep closing up shop 4399 | -9/Mines | X0-1V1 sent you into danger 4555 | -9/Mines | Found the Drone Emporium 4566 | -9/Mines | Found Prototype Device 4757 | -9/Mines | Learned Materials security intel 5058 | -9/Mines | Discovered new exit (range 11) 5078 | -9/Mines | X0-1V1 added 0b10 threat records associated with you (minor) 5421 | -9/Mines | Learned 2 Materials zone layouts 5475 | -9/Mines | Melee accuracy permanently improved by X0-1V1 (+5%; -50 max core) 5478 | -9/Mines | System corruption reached 10% 5479 | -9/Mines | Entered Materials 5479 | -8/Materials | Evolved 4 slots: Propulsion x2, Utility x2 5480 | -8/Materials | Identified exit to Storage 5941 | -8/Materials | Build established: Scavenger-Mutant 6023 | -8/Materials | X0-1V1 added 0b10 threat records associated with you (minor) 6134 | -8/Materials | Identified Splice Drone Bay 6181 | -8/Materials | Discovered new exit (range 5) 6468 | -8/Materials | Garrison activated, responded to threat 6478 | -8/Materials | Learned Factory repair station intel 6612 | -8/Materials | Learned location of 2 exits from Lower Caves 6652 | -8/Materials | Learned location of 2 exits from Lower Caves 6818 | -8/Materials | Garrison activated, responded to threat 6829 | -8/Materials | Entered Storage 6839 | -8/Storage | Destroyed 7 combat bots 6860 | -8/Storage | X0-1V1 redirected Transport squads to designated parking area 6898 | -8/Storage | Assisted by bots powering up and referring to "LRC-V3" 7195 | -8/Storage | Lost 3 allies 7196 | -8/Storage | Build established: Commander-Mutant 7218 | -8/Storage | Energy generation permanently improved by X0-1V1 (+10; -100 max core) 7320 | -8/Storage | X0-1V1 activates XOMVISION 7326 | -8/Storage | Used back door to open Recycling access 7326 | -8/Storage | Discovered new exit (range 5) 7343 | -8/Storage | Entered Recycling 7343 | -8/Recycling | Accompanied by 6 allies 7597 | -8/Recycling | Discovered new exit (range 5) 7754 | -8/Recycling | Learned Factory repair station intel 7778 | -8/Recycling | Learned Factory stockpile data 7791 | -8/Recycling | Learned 4 Factory zone layouts 7794 | -8/Recycling | Learned location of Lower Caves (-6) 7796 | -8/Recycling | Learned location of 1 exit from Lower Caves 7800 | -8/Recycling | Learned Factory fabricator intel 7815 | -8/Recycling | Learned Storage trap positions 7955 | -8/Recycling | Core integrity permanently improved by X0-1V1 (+250) 8051 | -8/Recycling | Scanned before Scraplab entrance 8378 | -8/Recycling | Entered Scraplab 8394 | -8/Recycling | Angered Scraplab inhabitants 8396 | -8/Recycling | Found Prototype Device 8396 | -8/Recycling | Identified Scrap Engine 8438 | -8/Recycling | Lost 5 allies 8583 | -8/Recycling | X0-1V1 activates XOMVISION 8898 | -8/Recycling | Build established: Construct 9055 | -8/Recycling | X0-1V1 sent hostile D-53 Grenadier (x1) 9645 | -8/Recycling | Entered Factory 9645 | -6/Factory | Evolved 4 slots: Propulsion x1, Utility x2, Weapon x1 9646 | -6/Factory | Identified exit to Lower Caves 9649 | -6/Factory | Loaded intel: 6 fabricator locations 9650 | -6/Factory | Loaded intel: 6 repair station locations 9808 | -6/Factory | Spotted B-75 Beast 9811 | -6/Factory | X0-1V1 released a cloud of subatomizers 9832 | -6/Factory | X0-1V1 announced a LAN party 10018 | -6/Factory | Garrison activated, responded to threat 10071 | -6/Factory | X0-1V1 foreshadows a heat wave 10076 | -6/Factory | X0-1V1 enhanced Transport squad support 10109 | -6/Factory | Identified exit to Garrison 10110 | -6/Factory | Entered Garrison 10117 | -6/Garrison | Triggered checkpoint 10197 | -6/Garrison | X0-1V1 activates XOMVISION 10656 | -6/Garrison | Spotted B-75 Beast 10657 | -6/Garrison | Triggered checkpoint 10692 | -6/Garrison | X0-1V1 sent allied Knight (x1) 10700 | -6/Garrison | Allies destroyed B-75 Beast 10901 | -6/Garrison | X0-1V1 activates XOMVISION 10942 | -6/Garrison | Installed Relay Interface Framework 11027 | -6/Garrison | Phase Generator disabled 11154 | -6/Garrison | Triggered checkpoint 11193 | -6/Garrison | X0-1V1 mutated your Propulsion slot to Power slot 11252 | -6/Garrison | Discovered new exit (range 9) 11322 | -6/Garrison | Triggered checkpoint 11376 | -6/Garrison | Garrison Relay disabled 11432 | -6/Garrison | Triggered checkpoint 11557 | -6/Garrison | Discovered new exit (range 20) 11627 | -6/Garrison | System corruption reached 10% 11639 | -6/Garrison | X0-1V1 activates XOMVISION 11720 | -6/Garrison | Expanded RIF knowledge: Coupler Efficiency 11777 | -6/Garrison | Identified exit to Factory 11777 | -6/Garrison | X0-1V1 revealed exit location to -5/Factory 12086 | -6/Garrison | Entered Factory 12086 | -5/Factory | Evolved 2 slots: Propulsion x1, Utility x1 12087 | -5/Factory | Loaded intel: 6 repair station locations 12158 | -5/Factory | Identified exit to Factory 12158 | -5/Factory | X0-1V1 revealed exit location to -4/Factory 12303 | -5/Factory | Identified exit to Upper Caves 12350 | -5/Factory | X0-1V1 activates XOMVISION 12386 | -5/Factory | First assault squad dispatched 12399 | -5/Factory | Found Imp. Powered Armor 12562 | -5/Factory | Entered Upper Caves 12819 | -5/Upper Caves | Learned Factory stockpile data 12892 | -5/Upper Caves | X0-1V1 activates XOMVISION 12925 | -5/Upper Caves | Encountered a Warlord checkpoint 13048 | -5/Upper Caves | X0-1V1 sent hostile Thug (x3) 13235 | -5/Upper Caves | X0-1V1 activates XOMVISION 13304 | -5/Upper Caves | Discovered new exit (range 5) 13334 | -5/Upper Caves | Entered another Upper Caves area 13345 | -5/Upper Caves | Discovered exit to Factory (range 4) 13369 | -5/Upper Caves | Found Alien Artifact 13369 | -5/Upper Caves | Identified Dimensional Node Initializer 13369 | -5/Upper Caves | Initialized slip node 13432 | -5/Upper Caves | Encountered a Warlord checkpoint 13484 | -5/Upper Caves | X0-1V1 activates XOMVISION 13557 | -5/Upper Caves | Encountered an infested base 13601 | -5/Upper Caves | X0-1V1 sent hostile Savage (x1) 13684 | -5/Upper Caves | Identified exit to Zhirov 13684 | -5/Upper Caves | X0-1V1 revealed exit location to -5/Zhirov 14155 | -5/Upper Caves | System corruption reached 10% 14215 | -5/Upper Caves | Found Imp. Powered Armor 14570 | -5/Upper Caves | Firepult stolen by Master Thief 14571 | -5/Upper Caves | Encountered a Master Thief 14571 | -5/Upper Caves | Encountered a Master Thief 14571 | -5/Upper Caves | Encountered a Master Thief 14572 | -5/Upper Caves | Encountered a Master Thief 14582 | -5/Upper Caves | KE Penetrator stolen by Master Thief 14583 | -5/Upper Caves | Lgt. Neutrino Core stolen by Master Thief 14713 | -5/Upper Caves | X0-1V1 caused items to flee you 14958 | -5/Upper Caves | Items stopped fleeing you 15100 | -5/Upper Caves | Entered Zhirov 15100 | -5/Zhirov | Discovered new exit (range 4) 15134 | -5/Zhirov | Met Zhirov 15194 | -5/Zhirov | Zhirov requested help retrieving the SGEMP Prototype 15222 | -5/Zhirov | Found Alien Artifact 15243 | -5/Zhirov | Found Alien Artifact 15574 | -5/Zhirov | Cloak Generator disabled 15574 | -5/Zhirov | Attacked by Zhirov 15583 | -5/Zhirov | Entered Proximity Caves 15726 | -4/Proximity Caves | Spotted B-86 Titan 15781 | -4/Proximity Caves | X0-1V1 vaporized surrounding terrain (radius 17) 15799 | -4/Proximity Caves | X0-1V1 activates XOMVISION 15868 | -4/Proximity Caves | X0-1V1 caused items to flee you 16017 | -4/Proximity Caves | Items stopped fleeing you 16119 | -4/Proximity Caves | X0-1V1 revealed exit location to -4/Factory 16209 | -4/Proximity Caves | Attracted the attention of an 0b10 outpost 16415 | -4/Proximity Caves | Found Hvy. Scimitar of Distortion 16442 | -4/Proximity Caves | X0-1V1 activates XOMVISION 16797 | -4/Proximity Caves | Learned Research trap positions 16888 | -4/Proximity Caves | Entered Factory 16888 | -4/Factory | Evolved 2 slots: Utility x2 16889 | -4/Factory | Identified exit to Extension 16889 | -4/Factory | Identified exit to Armory 16891 | -4/Factory | X0-1V1 put everyone to sleep 16905 | -4/Factory | X0-1V1 sent you to a vault 16906 | -4/Factory | Identified Integrated Reactor 16906 | -4/Factory | Installed Integrated Reactor, increased core energy generation (+10) 16931 | -4/Factory | Found Prototype Device 16931 | -4/Factory | Identified Exp. Phase Shifter 16938 | -4/Factory | Found Prototype Device 16938 | -4/Factory | Identified Adv. EM Shield 16948 | -4/Factory | Found Prototype Hackware 16954 | -4/Factory | Found Prototype Hackware 17286 | -4/Factory | Identified System Mapper (x2) 17289 | -4/Factory | Discovered new exit (range 22) 17335 | -4/Factory | Discovered new exit (range 3) 17356 | -4/Factory | X0-1V1 woke everyone up 17429 | -4/Factory | Identified exit to Research 17429 | -4/Factory | X0-1V1 revealed exit location to -3/Research 17669 | -4/Factory | Discovered exit to Research (range 23) 17708 | -4/Factory | Identified exit to Upper Caves 17708 | -4/Factory | X0-1V1 revealed exit location to -4/Upper Caves 17736 | -4/Factory | X0-1V1 redirected Transport squads to designated parking area 17777 | -4/Factory | X0-1V1 announced a LAN party 17858 | -4/Factory | X0-1V1 sent hostile Thug (x4) 17867 | -4/Factory | Entered Extension 18034 | -4/Extension | X0-1V1 caused items to flee you 18141 | -4/Extension | X0-1V1 upgraded hostiles (x1) 18200 | -4/Extension | Items stopped fleeing you 18270 | -4/Extension | X0-1V1 activates XOMVISION 18292 | -4/Extension | Spotted B-86 Titan 18430 | -4/Extension | Rescued a captive Derelict 18687 | -4/Extension | Build established: Commander-Construct 18692 | -4/Extension | Spotted B-86 Titan 18705 | -4/Extension | Allies destroyed B-86 Titan 18726 | -4/Extension | Destroyed B-86 Titan 18811 | -4/Extension | X0-1V1 activates XOMVISION 18817 | -4/Extension | Disrupted transfer network 18892 | -4/Extension | Found Unknown Device 18892 | -4/Extension | Identified Quantum Capacitor 18993 | -4/Extension | Lost 6 allies 19030 | -4/Extension | X0-1V1 added 0b10 threat records associated with you (minor) 19058 | -4/Extension | Rescued a captive Derelict 19117 | -4/Extension | First assault squad dispatched 19218 | -4/Extension | Lost 3 allies 19252 | -4/Extension | Build established: Construct 19328 | -4/Extension | Rescued a captive Derelict 19392 | -4/Extension | Rescued A7 19443 | -4/Extension | Discovered exit to Research (range 10) 19444 | -4/Extension | Discovered new exit (range 6) 19445 | -4/Extension | Disrupted transfer network 19568 | -4/Extension | X0-1V1 vaporized surrounding terrain (radius 17) 19732 | -4/Extension | X0-1V1 put everyone to sleep 19736 | -4/Extension | System corruption reached 10% 19765 | -4/Extension | X0-1V1 announced a LAN party 19830 | -4/Extension | X0-1V1 made a cryptic comment about sterilization and BL-4Z3 19837 | -4/Extension | Entered Cetus 19837 | -4/Cetus | Accompanied by 4 allies (A7) 19842 | -4/Cetus | Acquired a Cetus Manufacturing Module code from A7 19848 | -4/Cetus | Spotted Cetus Guard 19848 | -4/Cetus | Spotted Cetus Guard 19855 | -4/Cetus | Spotted Cetus Guard 19868 | -4/Cetus | Allies destroyed Cetus Guard 19869 | -4/Cetus | Spotted Cetus Guard 19871 | -4/Cetus | Destroyed Cetus Guard 19876 | -4/Cetus | Destroyed Cetus Guard 19883 | -4/Cetus | Allies destroyed Cetus Guard 19982 | -4/Cetus | Escorted A7 to Cetus Mainframe 20008 | -4/Cetus | Started Cetus Manufacturing Module 20033 | -4/Cetus | Manufactured an Enhanced Grunt 20058 | -4/Cetus | Manufactured an Enhanced Grunt 20083 | -4/Cetus | Manufactured an Enhanced Grunt 20094 | -4/Cetus | Discovered new exit (range 21) 20108 | -4/Cetus | Manufactured an Enhanced Grunt 20126 | -4/Cetus | System corruption reached 30% 20133 | -4/Cetus | Manufactured an Enhanced Grunt 20171 | -4/Cetus | Spotted Cetus Guard 20171 | -4/Cetus | Spotted Cetus Guard 20171 | -4/Cetus | Spotted Cetus Guard 20176 | -4/Cetus | Destroyed Cetus Guard 20177 | -4/Cetus | Spotted Cetus Guard 20184 | -4/Cetus | Allies destroyed Cetus Guard 20189 | -4/Cetus | Discovered exit to Research (range 22) 20196 | -4/Cetus | Allies destroyed Cetus Guard 20199 | -4/Cetus | Allies destroyed Cetus Guard 20209 | -4/Cetus | Found Prototype Device 20209 | -4/Cetus | Identified Exp. Thermal Shield 20230 | -4/Cetus | Met Revision 17 20365 | -4/Cetus | Build established: Commander-Construct 20547 | -4/Cetus | Murdered A7 20549 | -4/Cetus | X0-1V1 added 0b10 threat records associated with you (considerable) 20554 | -4/Cetus | Extracted ID and sensor layout for unrecognized location from A7's data core 20587 | -4/Cetus | Security sweep announced 20593 | -4/Cetus | Entered Archives 20593 | -4/Archives | Accompanied by 6 allies 20668 | -4/Archives | Discovered exit to Research (range 19) 20767 | -4/Archives | Discovered new exit (range 21) 20981 | -4/Archives | Discovered new exit (range 24) 21126 | -4/Archives | Entered Hub_04(d) 21126 | -4/Hub_04(d) | Accompanied by 4 allies 21252 | -4/Hub_04(d) | Discovered exit to Research (range 8) 21520 | -4/Hub_04(d) | Build established: Construct 21900 | -4/Hub_04(d) | Discovered exit to Research (range 10) 22022 | -4/Hub_04(d) | X0-1V1 put everyone to sleep 22046 | -4/Hub_04(d) | Network Hub disabled 22115 | -4/Hub_04(d) | Spotted Lightning 22120 | -4/Hub_04(d) | Spotted Lightning 22124 | -4/Hub_04(d) | Spotted Lightning 22127 | -4/Hub_04(d) | Spotted Lightning 22128 | -4/Hub_04(d) | Spotted Lightning 22129 | -4/Hub_04(d) | Spotted Lightning 22130 | -4/Hub_04(d) | Destroyed Lightning 22167 | -4/Hub_04(d) | Destroyed Lightning 22181 | -4/Hub_04(d) | Destroyed Lightning 22214 | -4/Hub_04(d) | Destroyed Lightning 22241 | -4/Hub_04(d) | Destroyed Lightning 22297 | -4/Hub_04(d) | Found Prototype Device 22297 | -4/Hub_04(d) | Identified Exp. EM Shield 22300 | -4/Hub_04(d) | Found Exp. EM Shield 22302 | -4/Hub_04(d) | Found Exp. EM Shield 22304 | -4/Hub_04(d) | Found Exp. Targeting Computer 22307 | -4/Hub_04(d) | Found Exp. Phase Shifter 22320 | -4/Hub_04(d) | Network Hub disabled 22492 | -4/Hub_04(d) | Entered Research 22492 | -3/Research | Evolved 2 slots: Utility x1, Weapon x1 22493 | -3/Research | Loaded intel: 106 trap records 22692 | -3/Research | Revision forces began assault on 0b10 22692 | -3/Research | X0-1V1 redirected Transport squads to designated parking area 22739 | -3/Research | Met up with Revision 17++ 22768 | -3/Research | X0-1V1 activates XOMVISION 22791 | -3/Research | Build established: Hacker-Construct 22824 | -3/Research | Found Prototype Processor 23092 | -3/Research | X0-1V1 activates XOMVISION 23192 | -3/Research | Research terminal network offline 23248 | -3/Research | X0-1V1 sent you to a vault 23253 | -3/Research | Found Prototype Device 23253 | -3/Research | Identified Femtoactuators 23258 | -3/Research | Found Prototype Device 23258 | -3/Research | Identified Exp. Cloaking Device 23264 | -3/Research | Found Prototype Ballistic Gun 23264 | -3/Research | Identified Multirail 23267 | -3/Research | Found Prototype Device 23267 | -3/Research | Identified Exp. Focal Shield 23312 | -3/Research | Found Prototype Special Weapon 23312 | -3/Research | Identified Exp. Remote Datajack 23333 | -3/Research | Found Gamma Bomb Array 23380 | -3/Research | Found Adv. Powered Armor 23423 | -3/Research | Spotted Striker 23425 | -3/Research | Spotted Striker 23447 | -3/Research | Lost 3 allies 23506 | -3/Research | Spotted Executioner 23564 | -3/Research | Found Imp. Powered Armor 23570 | -3/Research | Spotted Executioner 23587 | -3/Research | Destroyed Executioner 23615 | -3/Research | Found Prototype Device 23615 | -3/Research | Identified Adv. Kinecellerator 23777 | -3/Research | Destroyed 9 combat bots 23799 | -3/Research | X0-1V1 added 0b10 threat records associated with you (considerable) 23823 | -3/Research | Discovered new exit (range 21) 23855 | -3/Research | Spotted Executioner 23856 | -3/Research | Spotted Striker 23868 | -3/Research | Destroyed Striker 23868 | -3/Research | Destroyed Revision 17++ 23882 | -3/Research | Destroyed Executioner 23889 | -3/Research | Found Prototype Processor 23889 | -3/Research | Identified Exp. Core Analyzer 24035 | -3/Research | X0-1V1 caused items to flee you 24090 | -3/Research | X0-1V1 activates XOMVISION 24215 | -3/Research | Items stopped fleeing you 24316 | -3/Research | X0-1V1 vaporized surrounding terrain (radius 21) 24355 | -3/Research | Spotted Striker 24392 | -3/Research | Destroyed Striker 24605 | -3/Research | Spotted Executioner 24614 | -3/Research | Spotted Striker 24636 | -3/Research | Destroyed Striker 24644 | -3/Research | Destroyed Executioner 24667 | -3/Research | Found Exp. Targeting Computer 24671 | -3/Research | Spotted Striker 24681 | -3/Research | Spotted Striker 24682 | -3/Research | Destroyed Striker 24687 | -3/Research | X0-1V1 sent allied Quarantine Guard (x1) 24696 | -3/Research | Destroyed Striker 24738 | -3/Research | X0-1V1 mutated your Weapon slot to Propulsion slot 24773 | -3/Research | Spotted Striker 24773 | -3/Research | Spotted Striker 24788 | -3/Research | Destroyed Striker 24860 | -3/Research | Spotted Striker 24862 | -3/Research | Spotted Striker 24868 | -3/Research | Destroyed Striker 24877 | -3/Research | Destroyed Striker 24900 | -3/Research | Spotted Striker 24901 | -3/Research | Spotted Executioner 24911 | -3/Research | Destroyed Executioner 24916 | -3/Research | Destroyed Striker 25128 | -3/Research | Spotted Striker 25147 | -3/Research | Destroyed Striker 25288 | -3/Research | Identified exit to Research 25288 | -3/Research | X0-1V1 revealed exit location to -2/Research 25302 | -3/Research | X0-1V1 added 0b10 threat records associated with you (major) 25330 | -3/Research | Identified exit to Testing 25332 | -3/Research | Entered Testing 25373 | -3/Testing | Lrn. Sensor Array reconfigured into Item Mimic 25380 | -3/Testing | X0-1V1 enhanced Transport squad support 25507 | -3/Testing | X0-1V1 sent hostile B-74 Champion (x3) 25590 | -3/Testing | Found Prototype Device 25590 | -3/Testing | Identified Exp. Thermal Defense Suite 25620 | -3/Testing | Found Prototype Ballistic Gun 25742 | -3/Testing | Spotted Striker 25742 | -3/Testing | Spotted Striker 25786 | -3/Testing | Watched by a mysterious "MATRIX" hacker 25832 | -3/Testing | First assault squad dispatched 25878 | -3/Testing | Found Prototype Device 25878 | -3/Testing | Identified 2N-1CE's Frost Array 25956 | -3/Testing | Weapon slot count temporarily expanded by X0-1V1 (+2) 26137 | -3/Testing | Identified Transdimensional Reconstructor 26151 | -3/Testing | Identified Hyp. Multirail 26316 | -3/Testing | Found Prototype Device 26418 | -3/Testing | Weapon slot count reverted to normal (-2) 26422 | -3/Testing | X0-1V1 put everyone to sleep 26439 | -3/Testing | Identified Exp. EM Disruption Field 26446 | -3/Testing | Found Prototype Protection 26518 | -3/Testing | X0-1V1 sent hostile Fireman (x2) 26882 | -3/Testing | X0-1V1 sent hostile Fireman (x2) 26980 | -3/Testing | X0-1V1 added 0b10 threat records associated with you (minor) 27119 | -3/Testing | X0-1V1 woke everyone up 27296 | -3/Testing | Identified exit to Garrison 27298 | -3/Testing | Entered Garrison 27475 | -3/Garrison | Garrison Relay disabled 27548 | -3/Garrison | Triggered checkpoint 27558 | -3/Garrison | Spotted B-86 Titan 27593 | -3/Garrison | Heavy support dispatched to Research 27629 | -3/Garrison | Destroyed B-86 Titan 27720 | -3/Garrison | X0-1V1 whisked you away to safety 27744 | -3/Garrison | Discovered exit to Research (range 14) 27751 | -3/Garrison | Learned Research security intel 27792 | -3/Garrison | Triggered checkpoint 27800 | -3/Garrison | Heavy support dispatched to Research 27839 | -3/Garrison | Expanded RIF knowledge: Hotswap 27896 | -3/Garrison | Triggered checkpoint 27920 | -3/Garrison | H-XX Assembler disabled 27923 | -3/Garrison | Garrison Relay disabled 27940 | -3/Garrison | Discovered exit to Research (range 8) 28247 | -3/Garrison | X0-1V1 revealed exit location to -2/Research 28292 | -3/Garrison | Rescued a captive Derelict 28328 | -3/Garrison | Triggered checkpoint 28330 | -3/Garrison | Found embedded Infiltrators 28363 | -3/Garrison | Expanded RIF knowledge: Autooverride 28365 | -3/Garrison | Found Adv. Powered Armor 28368 | -3/Garrison | Found Adv. Powered Armor 28369 | -3/Garrison | Found Adv. Powered Armor 28380 | -3/Garrison | Spotted B-86 Titan 28411 | -3/Garrison | X0-1V1 caused items to flee you 28496 | -3/Garrison | X0-1V1 activates XOMVISION 28564 | -3/Garrison | Items stopped fleeing you 28573 | -3/Garrison | Entered Research 28573 | -2/Research | Accompanied by 2 allies 28573 | -2/Research | Evolved 2 slots: Utility x1, Weapon x1 28674 | -2/Research | Forcibly received Sfc. Transmogifier from X0-1V1 28678 | -2/Research | X0-1V1 activates XOMVISION 28705 | -2/Research | X0-1V1 announced a LAN party 28736 | -2/Research | Identified exit to Quarantine 28845 | -2/Research | Spotted B-90 Cyclops 28915 | -2/Research | Entered Quarantine 28937 | -2/Quarantine | Found Transdimensional Reconstructor 29028 | -2/Quarantine | System corruption reached 10% 29159 | -2/Quarantine | Cryocooling Duct disabled 29174 | -2/Quarantine | Ambient heat levels rising (+20) 29174 | -2/Quarantine | Non-combat units ordered to evacuate 29174 | -2/Quarantine | Identified exit to Protoforge 29174 | -2/Quarantine | X0-1V1 revealed exit location to -2/Protoforge 29197 | -2/Quarantine | Found Prototype Device 29199 | -2/Quarantine | X0-1V1 activates XOMVISION 29211 | -2/Quarantine | Identified Exp. Sensor Array 29212 | -2/Quarantine | X0-1V1 announced a LAN party 29256 | -2/Quarantine | Identified exit to Access 29256 | -2/Quarantine | X0-1V1 revealed exit location to -1/Access 29509 | -2/Quarantine | X0-1V1 sent you to a vault 29664 | -2/Quarantine | Found Exp. Core Analyzer 29759 | -2/Quarantine | X0-1V1 added 0b10 threat records associated with you (major) 29789 | -2/Quarantine | Found Dimensional Node Initializer 29789 | -2/Quarantine | Initialized slip node 29792 | -2/Quarantine | Found Alien Artifact 29792 | -2/Quarantine | Identified Hpw. Transdimensional Reconstructor 29792 | -2/Quarantine | Warped through subspace to slip node 29795 | -2/Quarantine | Found Transdimensional Reconstructor 29795 | -2/Quarantine | Warped through subspace to slip node 29799 | -2/Quarantine | Found Transdimensional Reconstructor 29799 | -2/Quarantine | Warped through subspace to slip node 29805 | -2/Quarantine | Found Dimensional Node Initializer 29807 | -2/Quarantine | Warped through subspace to slip node 29809 | -2/Quarantine | Found Dimensional Node Initializer 29809 | -2/Quarantine | Initialized slip node 29915 | -2/Quarantine | First assault squad dispatched 30058 | -2/Quarantine | Sensors blinded by X0-1V1 30060 | -2/Quarantine | Lost 3 allies 30084 | -2/Quarantine | Spotted Fortress 30095 | -2/Quarantine | Weapon slot count temporarily expanded by X0-1V1 (+3) 30113 | -2/Quarantine | Discovered new exit (range 6) 30116 | -2/Quarantine | Entered Protoforge 30140 | -2/Protoforge | Spotted Hotshot 30140 | -2/Protoforge | Spotted Hotshot 30140 | -2/Protoforge | Spotted Hotshot 30237 | -2/Protoforge | Weapon slot count reverted to normal (-3) 30294 | -2/Protoforge | Discovered exit to Access (range 6) 30298 | -2/Protoforge | Spotted Hotshot 30300 | -2/Protoforge | Core integrity restored by X0-1V1 (+310) 30364 | -2/Protoforge | Spotted Hotshot 30387 | -2/Protoforge | Build established: Construct 30391 | -2/Protoforge | Superfortress began startup sequence 30400 | -2/Protoforge | X0-1V1 activates XOMVISION 30403 | -2/Protoforge | Initialized slip node 30438 | -2/Protoforge | Additional patrols dispatched to research labs 30446 | -2/Protoforge | Spotted Immortal 30469 | -2/Protoforge | Spotted Immortal 30474 | -2/Protoforge | Spotted Immortal 30527 | -2/Protoforge | Spotted Immortal 30538 | -2/Protoforge | Spotted Immortal 30549 | -2/Protoforge | Weapon slot count temporarily expanded by X0-1V1 (+3) 30553 | -2/Protoforge | Destroyed Immortal 30562 | -2/Protoforge | Destroyed Immortal 30580 | -2/Protoforge | Destroyed Immortal 30589 | -2/Protoforge | Destroyed Immortal 30639 | -2/Protoforge | Spotted Decapitator 30639 | -2/Protoforge | Spotted Decapitator 30639 | -2/Protoforge | Spotted Decapitator 30639 | -2/Protoforge | Spotted Decapitator 30647 | -2/Protoforge | Spotted Immortal 30647 | -2/Protoforge | Spotted Immortal 30651 | -2/Protoforge | Spotted Immortal 30653 | -2/Protoforge | Destroyed Immortal 30661 | -2/Protoforge | Destroyed Immortal 30678 | -2/Protoforge | Destroyed Immortal 30685 | -2/Protoforge | X0-1V1 sent you to a vault 30690 | -2/Protoforge | Spotted B-90 Cyclops 30731 | -2/Protoforge | X0-1V1 put everyone to sleep 30733 | -2/Protoforge | Lost 4 allies 30754 | -2/Protoforge | Weapon slot count reverted to normal (-3) 30801 | -2/Protoforge | Spotted Overlord 30804 | -2/Protoforge | X0-1V1 activates XOMVISION 30805 | -2/Protoforge | Spotted Hotshot 30805 | -2/Protoforge | Spotted Hotshot 30805 | -2/Protoforge | Spotted Hotshot 30835 | -2/Protoforge | Found Exp. Force Field 30836 | -2/Protoforge | Found Cep. Antimissile System 30866 | -2/Protoforge | Destroyed Decapitator 30869 | -2/Protoforge | Destroyed Decapitator 30875 | -2/Protoforge | Destroyed Decapitator 30880 | -2/Protoforge | Destroyed Decapitator 30891 | -2/Protoforge | Found Prototype Device 30891 | -2/Protoforge | Identified Crosscalibrator 30901 | -2/Protoforge | Destroyed 8 combat bots 30915 | -2/Protoforge | Forge Plexus network access discovered 30915 | -2/Protoforge | Spotted Decapitator 30916 | -2/Protoforge | Spotted Decapitator 30920 | -2/Protoforge | Destroyed Decapitator 30922 | -2/Protoforge | Spotted Decapitator 30925 | -2/Protoforge | Destroyed Decapitator 30926 | -2/Protoforge | Destroyed Decapitator 30941 | -2/Protoforge | Found Cep. Phase Shift Module 30985 | -2/Protoforge | Spotted Immortal 30988 | -2/Protoforge | Spotted Hotshot 30988 | -2/Protoforge | Spotted Hotshot 30988 | -2/Protoforge | Spotted Hotshot 31000 | -2/Protoforge | Destroyed Hotshot 31004 | -2/Protoforge | Destroyed Hotshot 31006 | -2/Protoforge | Destroyed Hotshot 31010 | -2/Protoforge | Spotted Hotshot 31033 | -2/Protoforge | Spotted V894-l 31043 | -2/Protoforge | Found Cep. Antigrav Storage Unit 31048 | -2/Protoforge | Found Cep. NT7 Matterbank 31053 | -2/Protoforge | Found Cep. Chromion Battery 31073 | -2/Protoforge | Found Faulty Cep. Matter Streamer 31075 | -2/Protoforge | X0-1V1 woke everyone up 31094 | -2/Protoforge | Spotted V221-j 31105 | -2/Protoforge | Destroyed V894-l 31106 | -2/Protoforge | Destroyed V221-j 31115 | -2/Protoforge | Found Exp. Focal Shield 31116 | -2/Protoforge | First assault squad dispatched 31122 | -2/Protoforge | Found Cep. Chromion Battery 31124 | -2/Protoforge | Found Cep. Chromion Battery 31128 | -2/Protoforge | Found Faulty Cep. Matter Streamer 31204 | -2/Protoforge | X0-1V1 vaporized surrounding terrain (radius 20) 31207 | -2/Protoforge | Spotted Immortal 31209 | -2/Protoforge | Spotted Immortal 31230 | -2/Protoforge | Destroyed Immortal 31235 | -2/Protoforge | Destroyed Immortal 31241 | -2/Protoforge | Destroyed Immortal 31270 | -2/Protoforge | Spotted Decapitator 31276 | -2/Protoforge | X0-1V1 announced a LAN party 31282 | -2/Protoforge | Spotted Decapitator 31293 | -2/Protoforge | Destroyed Decapitator 31294 | -2/Protoforge | Spotted Decapitator 31302 | -2/Protoforge | Destroyed Decapitator 31346 | -2/Protoforge | Destroyed 13 combat bots 31423 | -2/Protoforge | Found Cep. Rapid Grenade Launcher 31533 | -2/Protoforge | Found Cep. Nanofilaments [Endoweave] 31533 | -2/Protoforge | Installed Cep. Nanofilaments [Endoweave], 5 resistances modified: KI +10%, TH +10%, EX -50%, S -20%, P +20% 31554 | -2/Protoforge | Found Exp. Kinecellerator 31559 | -2/Protoforge | Found Cep. Hypertargeting System 31570 | -2/Protoforge | Found Exp. Kinecellerator 31600 | -2/Protoforge | Spotted AP7-3 31630 | -2/Protoforge | Spotted AP7-3 31642 | -2/Protoforge | Destroyed AP7-3 31662 | -2/Protoforge | Destroyed AP7-3 31724 | -2/Protoforge | Found Prototype Device 31724 | -2/Protoforge | Identified Exp. ECM Suite 31755 | -2/Protoforge | Scanned by Researcher 31766 | -2/Protoforge | X0-1V1 activates XOMVISION 31776 | -2/Protoforge | Found Cep. Core Analysis Suite 31780 | -2/Protoforge | Found Faulty Cep. Thermoelectric Network 31782 | -2/Protoforge | Found Faulty Cep. Thermoelectric Network 31815 | -2/Protoforge | Found Mni. Quantum Capacitor 31893 | -2/Protoforge | X0-1V1 caused items to flee you 31953 | -2/Protoforge | Destroyed 11 combat bots 31966 | -2/Protoforge | X0-1V1 vaporized surrounding terrain (radius 23) 31981 | -2/Protoforge | Spotted V578-m 31983 | -2/Protoforge | Spotted V314-a 31983 | -2/Protoforge | Destroyed V578-m 31985 | -2/Protoforge | Destroyed V314-a 31986 | -2/Protoforge | Spotted V858-i 31987 | -2/Protoforge | Destroyed V858-i 31998 | -2/Protoforge | System corruption reached 30% 32020 | -2/Protoforge | Items stopped fleeing you 32080 | -2/Protoforge | Found Prototype Device 32080 | -2/Protoforge | Identified Exp. Shield Generator 32092 | -2/Protoforge | Found Prototype Protection 32092 | -2/Protoforge | Identified Med. Regenerative Plating 32104 | -2/Protoforge | Found Imp. Powered Armor 32185 | -2/Protoforge | Found Cep. NT7 Matterbank 32191 | -2/Protoforge | X0-1V1 activates XOMVISION 32248 | -2/Protoforge | Spotted Decapitator 32248 | -2/Protoforge | Spotted Decapitator 32248 | -2/Protoforge | Spotted Decapitator 32253 | -2/Protoforge | Destroyed Decapitator 32256 | -2/Protoforge | Destroyed Decapitator 32263 | -2/Protoforge | Destroyed Decapitator 32369 | -2/Protoforge | Found Cep. Plasma Driver 32473 | -2/Protoforge | Found Faulty Exp. Force Field 32475 | -2/Protoforge | Found Faulty Cep. Energy Mantle 32477 | -2/Protoforge | Found Cep. Antimissile System 32559 | -2/Protoforge | Spotted V875-v 32559 | -2/Protoforge | Spotted V679-w 32559 | -2/Protoforge | X0-1V1 sent you into danger 32597 | -2/Protoforge | Destroyed V679-w 32636 | -2/Protoforge | Destroyed V875-v 32646 | -2/Protoforge | Found Prototype Device 32646 | -2/Protoforge | Identified Exp. Weapon Cycler 32651 | -2/Protoforge | X0-1V1 activates XOMVISION 32662 | -2/Protoforge | Found Faulty Cep. Energy Mantle 32684 | -2/Protoforge | X0-1V1 sent hostile S-43 Plague (x3) 32693 | -2/Protoforge | Found Prototype Processor 32693 | -2/Protoforge | Identified Exp. Target Analyzer 32827 | -2/Protoforge | Destroyed 23 combat bots 32829 | -2/Protoforge | Found Exp. System Purifier 32832 | -2/Protoforge | Spotted Hotshot 32832 | -2/Protoforge | Spotted Hotshot 32832 | -2/Protoforge | Spotted Hotshot 32832 | -2/Protoforge | Spotted Hotshot 32832 | -2/Protoforge | X0-1V1 sent you into danger 32832 | -2/Protoforge | Warped through subspace to slip node 32937 | -2/Protoforge | Spotted Striker 32943 | -2/Protoforge | Destroyed Striker 32951 | -2/Protoforge | Spotted Striker 32951 | -2/Protoforge | Spotted Striker 32966 | -2/Protoforge | Destroyed Striker 32969 | -2/Protoforge | Spotted Decapitator 32979 | -2/Protoforge | X0-1V1 sent allied Quarantine Guard (x1) 32984 | -2/Protoforge | Core integrity fell below 50% 32991 | -2/Protoforge | Spotted Hotshot 32991 | -2/Protoforge | Spotted Striker 32993 | -2/Protoforge | X0-1V1 sent allied B-74 Champion (x2) 32997 | -2/Protoforge | Spotted Decapitator 33006 | -2/Protoforge | Core integrity restored by X0-1V1 (+434) 33007 | -2/Protoforge | X0-1V1 downgraded hostiles (x8) 33008 | -2/Protoforge | Spotted Striker 33035 | -2/Protoforge | Lost 3 allies 33042 | -2/Protoforge | Lost 19 parts (2p1n11u5w) 33092 | -2/Protoforge | X0-1V1 turns hostiles against one another 33096 | -2/Protoforge | Entered Access 33096 | -1/Access | Evolved 2 slots: Utility x2 33198 | -1/Access | X0-1V1 sent you to a vault 33200 | -1/Access | Found Prototype Reactor 33200 | -1/Access | Identified Zero-point Reactor 33208 | -1/Access | Found Hvy. Scimitar of Distortion 33213 | -1/Access | Found Chaos Jack 33221 | -1/Access | Found Exp. Target Analyzer 33240 | -1/Access | Identified exit to Surface 33253 | -1/Access | X0-1V1 destroyed Energy Cycler 33253 | -1/Access | Energy Cycler disabled 33349 | -1/Access | X0-1V1 redirected Transport squads to designated parking area 33426 | -1/Access | Build established: Tank 33426 | -1/Access | Spotted B-99 Colossus 33444 | -1/Access | Spotted B-99 Colossus 33457 | *** | Escaped! Last Messages --------------- 33445_ Penetrated by Slug. 33445_ Slug penetrates Wall. 33448_ Plasma Slug penetrates Sealed Heavy Doors. 33448_ Sealed Heavy Doors breached. 33448_ Imp. Hacking Suite destroyed. 33448_ Critical hit (Blast). 33448_ Slug penetrates Sealed Heavy Doors. 33448_ Penetrated by Slug. 33448_ Slug penetrates Reinforced Barrier. 33448_ Penetrated by Slug. 33450_ Acquired 5 matter. 33450_ Plasma Slug penetrates Sealed Heavy Doors. 33452_ X0-1V1 twists the quantum threads just so. 33452_ B-99 Colossus sundered. 33452_ B-99 Colossus destroyed. 33454_ ALERT: Potential suspicious activity detected, Q-Series report to Access Zone 1L. 33454_ Plasma Slug penetrates Main Access Shell. 33454_ Main Access Shell breached. 33455_ System corrupted: Energy discharge (-361). Map ----- +----------------------------------------------------+ | ?????????????????????????????????????????????????? | | ?????????????????????????????????????????????????? | | ?????????????????????????????????????????????????? | | ?????????????????????????????????????????????????? | | ?????????????????????????????????????????????????? | | ?????????????????????????????????????????????????? | | ?????????????????????????????????????????????????? | | ?????????????????????????????????????????????????? | | ?????????????????????????????????????????????????? | | ?????????????????????????????????????????????????? | | ?????????????????????????????????????????????????? | | ?????????????????????????????????????????????????? | | ???????????????????????????????????????????? ????? | | ???????????????????????????????????????????? ????? | | ???????????????????????????????????????????? #???? | | ???????????????????????????????????????????# ####? | | ???????????????????????????????????????????# #? | | ???????????????????????????????????????????# #? | | ???????????????????#???????????????????????# #? | | ?????????????????### ???????###??#########?# +? | | ??????????????????"" ?????? "??" #?# #? | | ???????????????????? ????? "??" #?# #? | | ????????????????????? """""" "??" ### #? | | ?????????????????????? " "??" ## | | ???????????????????????" "" " "??" ## | | ???????????????????????" @" " ""?" %% ## | | ???????????????????????" " """ !] ## | | ????????????? """" " " ""**=![ "## ## | | ????????????? "" ]!=!! ### ## | | ????????????? """"!%!% #?# % ## | | ????????????????#### ##########??#########?# ## | | ???????????????????????????????????????????# ## | | ???????????????????????????????????????????# ## | | ???????????????????????????????????????????# ## | | ???????????????????????????????????????????# ## | | ???????????????????????????????????????????# ## | | ???????????????????????????????????????????# ## | | ???????????????????????????????????????????# | | ???????????????????????????????????????????# | | ???????????????????????????????????????????# | | ???????????????????????????????????????????# | | ???????????????????????????????????????????##### | | ???????????????????????????????????????????????# | | ???????????????????????????????????????????????# | | ???????????????????????????????????????????????# | | ???????????????????????????????????????????????# | | ???????????????????????????????????????????????# | | ???????????????????????????????????????????????# | | ???????????????????????????????????????????????# | | ???????????????????????????????????????????????# | +----------------------------------------------------+ Best States ------------- Heat Dissipation 222 Coolant Potential 100 Energy Generation 97 Energy Capacity 3379 Matter Stores 1000 Matter Capacity 1050 Sight Range 28 Robot Scan Range 16 Terrain Scan Density 10 Jamming Range 16 Armor Coverage 800 Resistance: KI 10 Resistance: TH 30 Resistance: EM 75 Resistance: P 20 Core Shielding 40 Weapon Shielding 90 Point Defense Rating 480 Weapon Cycling 30 Phase Shifting 25 Evasion (%) 77 Targeting Accuracy 12 Melee Accuracy 5 Target Analysis 10 Core Analysis 11 Recoil Reduction 6 Kinecelleration 66 Offensive Hacking 20 Relay Coupler Types 1 Relay Coupler Value 37 Item Schematics ----------------- Imp. Matter Compressor | -3/Testing | Archive Hvy. Dispersion Rifle | -3/Testing | Archive Prc. Energy Filter | -3/Testing | Archive Gravity Neutralizer | -3/Testing | Archive Cld. Phase Cannon | -3/Testing | Archive Adv. EM Shield | -2/Protoforge | Archive Adv. Plasma Rifle | -2/Protoforge | Archive Hvy. Tesla Rifle | -2/Protoforge | Archive Imp. Matter Neutralizer | -2/Protoforge | Archive Exp. Reaction Control System | -2/Protoforge | Archive Cld. Antigrav System | -2/Protoforge | Archive Ionic Axe | -2/Protoforge | Archive Exp. Hacking Suite | -2/Protoforge | Archive Exp. ECM Suite | -2/Protoforge | Archive Diametric Drive | -2/Protoforge | Archive Robot Schematics ------------------ Y-72 Warden | -3/Testing | Archive K-01 Serf | -2/Protoforge | Archive H-88 Terminator | -2/Protoforge | Archive T-07 Excavator | -2/Protoforge | Archive A-27 Freighter | -2/Protoforge | Archive L-61 Swordsman | -2/Protoforge | Archive Fabricated ------------ Nothing Repaired ---------- Nothing Studied --------- Missile Launcher | -4/Factory | Hacked Hvy. Shock Bomb Launcher | -3/Research | Hacked Railgun | -3/Research | Hacked Alien Tech Used ----------------- Dimensional Node Initializer Integrated Reactor High-powered Transdimensional Reconstructor Transdimensional Reconstructor Concept Nanofilaments [Endoweave] Achievements -------------- None Challenges ------------ None Game ------ Seed RapidPointyMace Manual? 0 Play Time 06:03:46 Cumulative 1741.5 hours Start 2026.09.01 @ 00:10:34 End 2026.09.16 @ 22:44:55 Sessions 17 Manual Loads 0 Difficulty Rogue Special Mode None Game No. 1250 Rogue 1210 Adventurer 40 Explorer 0 Win Type 0 Total 230 Types 110/12/76/3/2/4/16/2/1/4 Lore% 97 Gallery% 98 Achievement% 93 Wizard Run 0 Options --------- Layout 0 ASCII 0 Keyboard 0 Movement Numpad Keybinds 0 Fullscreen 0 Font 20/Terminus Map View 76x50 Zoom Use 0% Tactical HUD 1 Map Filters NONE Filters NONE Steam 1 RUN: 476c9dc4-e049-45d4-88ed-71b5f04c6778